Workbook

Sheet Employee Attendance Template
A1: www.ExceDataPro.com | D1: Month | E1: =D2 -> May | AJ1: Attendance
A2: Attendance And Salary Sheet | D2: May | E2: =TEXT(E3,"ddd") -> Tue | F2: =TEXT(F3,"ddd") -> Wed | G2: Thu | H2: Fri | I2: Sat | J2: Sun | K2: Mon | L2: Tue | M2: Wed | N2: Thu | O2: Fri | P2: Sat | Q2: Sun | R2: Mon | S2: Tue | T2: Wed | U2: Thu | V2: Fri | W2: Sat | X2: Sun | Y2: Mon | Z2: Tue | AA2: Wed | AB2: Thu | AC2: Fri | AD2: Sat | AE2: Sun | AF2: Mon | AG2: Tue | AH2: Wed | AI2: Thu | AJ2: Summary
A3: SR No | B3: Employee Name | C3: Emp ID | D3: Designation | E3: 2018-05-01 | F3: =+E3+1 -> 2018-05-02 | G3: 2018-05-03 | H3: 2018-05-04 | I3: 2018-05-05 | J3: 2018-05-06 | K3: 2018-05-07 | L3: 2018-05-08 | M3: 2018-05-09 | N3: 2018-05-10 | O3: 2018-05-11 | P3: 2018-05-12 | Q3: 2018-05-13 | R3: 2018-05-14 | S3: 2018-05-15 | T3: 2018-05-16 | U3: 2018-05-17 | V3: 2018-05-18 | W3: 2018-05-19 | X3: 2018-05-20 | Y3: 2018-05-21 | Z3: 2018-05-22 | AA3: 2018-05-23 | AB3: 2018-05-24 | AC3: 2018-05-25 | AD3: 2018-05-26 | AE3: 2018-05-27 | AF3: 2018-05-28 | AG3: 2018-05-29 | AH3: 2018-05-30 | AI3: 2018-05-31 | AJ3: Present | AK3: Leave Taken | AL3: Allowed Leave | AM3: Total Days in Month | AN3: Total Working Days | AO3: Worked Days | AP3: Total Day Off
A4: 1 | B4: Raj Sharma | C4: EM1024 | D4: Chief Technical Officer | E4: P | F4: L | G4: P | H4: P | I4: P | J4: H | K4: P | L4: P | M4: P | N4: P | O4: P | P4: P | Q4: H | R4: P | S4: P | T4: P | U4: L | V4: P | W4: P | X4: H | Y4: P | Z4: P | AA4: P | AB4: P | AC4: H | AD4: P | AE4: H | AF4: L | AG4: L | AH4: L | AI4: P | AJ4: =COUNTIF(E4:AI4,"P") -> 21 | AK4: =COUNTIF(E4:AI4,"L") -> 5 | AL4: 2 | AM4: =COUNTA(E2:AI2) -> 31 | AN4: =COUNTA(E2:AI2)-COUNTIF(E2:AI2,"Sun") -> 27 | AO4: =IF(AK4>=AL4,AN4-AK4,AN4) -> 22 | AP4: =COUNTIF(E4:AI4,"H") -> 5
A5: 2 | B5: Sharad Gandhi | C5: EM1025 | D5: Accountant | E5: P | F5: P | G5: P | H5: P | I5: P | J5: H | K5: P | L5: L | M5: P | N5: P | O5: P | P5: P | Q5: H | R5: P | S5: P | T5: P | U5: P | V5: P | W5: P | X5: H | Y5: P | Z5: P | AA5: L | AB5: P | AC5: H | AD5: P | AE5: H | AF5: P | AG5: P | AH5: P | AI5: L | AJ5: 23 | AK5: =COUNTIF(E5:AI5,"L") -> 3 | AL5: 2 | AM5: =COUNTA(E3:AI3) -> 31 | AN5: =AN4 -> 27 | AO5: =IF(AK5>=AL5,AN5-AK5,AN5) -> 24 | AP5: =COUNTIF(E5:AI5,"H") -> 5
A6: 3 | B6: Danish D'Souza | C6: EM1026 | D6: Senior Web Developer | E6: P | F6: P | G6: P | H6: P | I6: P | J6: H | K6: P | L6: P | M6: P | N6: P | O6: P | P6: P | Q6: H | R6: P | S6: P | T6: P | U6: P | V6: P | W6: P | X6: H | Y6: P | Z6: P | AA6: P | AB6: P | AC6: H | AD6: P | AE6: H | AF6: P | AG6: P | AH6: P | AI6: P | AJ6: 26 | AK6: 0 | AL6: 2 | AM6: 31 | AN6: =AN5 -> 27 | AO6: 27 | AP6: 5
A7: 4 | B7: Pawan Patil | C7: EM1027 | D7: Senior Ux/Ui Developer | E7: L | F7: P | G7: P | H7: P | I7: P | J7: H | K7: P | L7: P | M7: P | N7: P | O7: P | P7: P | Q7: H | R7: P | S7: P | T7: P | U7: P | V7: P | W7: P | X7: H | Y7: P | Z7: P | AA7: P | AB7: P | AC7: H | AD7: P | AE7: H | AF7: P | AG7: P | AH7: P | AI7: P | AJ7: 25 | AK7: 1 | AL7: 2 | AM7: 31 | AN7: =AN6 -> 27 | AO7: 27 | AP7: 5
A8: 5 | B8: Rijo Paul | C8: EM1028 | D8: Senior Web Developer | E8: P | F8: P | G8: P | H8: P | I8: P | J8: H | K8: P | L8: P | M8: P | N8: L | O8: P | P8: P | Q8: H | R8: P | S8: P | T8: P | U8: P | V8: P | W8: P | X8: H | Y8: P | Z8: P | AA8: P | AB8: P | AC8: H | AD8: P | AE8: H | AF8: P | AG8: P | AH8: P | AI8: P | AJ8: 25 | AK8: 1 | AL8: 2 | AM8: 31 | AN8: =AN7 -> 27 | AO8: 27 | AP8: 5
A9: 6 | B9: Joseph P | C9: EM1029 | D9: Senior Web Developer | E9: P | F9: P | G9: P | H9: P | I9: L | J9: H | K9: P | L9: P | M9: P | N9: P | O9: P | P9: P | Q9: H | R9: P | S9: P | T9: P | U9: P | V9: P | W9: P | X9: H | Y9: P | Z9: P | AA9: P | AB9: P | AC9: H | AD9: P | AE9: H | AF9: L | AG9: P | AH9: P | AI9: P | AJ9: 24 | AK9: 2 | AL9: 2 | AM9: 31 | AN9: =AN8 -> 27 | AO9: 25 | AP9: 5
A10: 7 | B10: Aakash Patel | C10: EM1030 | D10: Web Developer | E10: P | F10: P | G10: P | H10: P | I10: P | J10: H | K10: P | L10: P | M10: P | N10: P | O10: P | P10: P | Q10: H | R10: P | S10: P | T10: P | U10: P | V10: P | W10: P | X10: H | Y10: P | Z10: P | AA10: P | AB10: P | AC10: H | AD10: P | AE10: H | AF10: P | AG10: P | AH10: P | AI10: P | AJ10: 26 | AK10: 0 | AL10: 2 | AM10: 31 | AN10: =AN9 -> 27 | AO10: 27 | AP10: 5
A11: 8 | B11: Ganesh Rahu | C11: EM1031 | D11: Ux/Ui Designer | E11: P | F11: P | G11: P | H11: P | I11: P | J11: H | K11: P | L11: P | M11: P | N11: P | O11: P | P11: P | Q11: H | R11: P | S11: P | T11: P | U11: P | V11: P | W11: P | X11: H | Y11: P | Z11: P | AA11: P | AB11: P | AC11: H | AD11: P | AE11: H | AF11: P | AG11: P | AH11: P | AI11: P | AJ11: 26 | AK11: 0 | AL11: 2 | AM11: 31 | AN11: =AN10 -> 27 | AO11: 27 | AP11: 5
A12: 9 | B12: Vinudas K.S | C12: EM1032 | D12: Web Developer | E12: P | F12: P | G12: P | H12: P | I12: P | J12: H | K12: P | L12: P | M12: P | N12: P | O12: P | P12: P | Q12: H | R12: P | S12: P | T12: P | U12: P | V12: P | W12: P | X12: H | Y12: P | Z12: P | AA12: P | AB12: P | AC12: H | AD12: P | AE12: H | AF12: P | AG12: P | AH12: P | AI12: P | AJ12: 26 | AK12: 0 | AL12: 2 | AM12: 31 | AN12: =AN11 -> 27 | AO12: 27 | AP12: 5
A13: 10 | B13: Divya Kumar | C13: EM1033 | D13: Web Developer | E13: P | F13: P | G13: P | H13: P | I13: P | J13: H | K13: P | L13: P | M13: P | N13: P | O13: P | P13: P | Q13: H | R13: P | S13: P | T13: P | U13: P | V13: L | W13: P | X13: H | Y13: P | Z13: P | AA13: P | AB13: L | AC13: H | AD13: P | AE13: H | AF13: P | AG13: P | AH13: P | AI13: P | AJ13: 24 | AK13: 2 | AL13: 2 | AM13: 31 | AN13: =AN12 -> 27 | AO13: 25 | AP13: 5
A14: 11 | B14: Shilpa R | C14: EM1034 | D14: QAA | E14: P | F14: P | G14: P | H14: P | I14: P | J14: H | K14: P | L14: P | M14: P | N14: P | O14: P | P14: P | Q14: H | R14: P | S14: P | T14: P | U14: P | V14: P | W14: P | X14: H | Y14: P | Z14: P | AA14: P | AB14: P | AC14: H | AD14: P | AE14: H | AF14: P | AG14: P | AH14: P | AI14: P | AJ14: 26 | AK14: 0 | AL14: 2 | AM14: 31 | AN14: =AN13 -> 27 | AO14: 27 | AP14: 5
A15: 12 | B15: Sindhu J.P | C15: EM1035 | D15: Web Developer | E15: P | F15: P | G15: P | H15: P | I15: P | J15: H | K15: P | L15: P | M15: P | N15: P | O15: P | P15: P | Q15: H | R15: P | S15: P | T15: P | U15: P | V15: P | W15: P | X15: H | Y15: P | Z15: P | AA15: P | AB15: P | AC15: H | AD15: P | AE15: H | AF15: P | AG15: P | AH15: P | AI15: P | AJ15: 26 | AK15: 0 | AL15: 2 | AM15: 31 | AN15: =AN14 -> 27 | AO15: 27 | AP15: 5
A16: 13 | B16: Deepthi P.S | C16: EM1036 | D16: QAA | E16: P | F16: L | G16: P | H16: P | I16: P | J16: H | K16: P | L16: P | M16: P | N16: P | O16: P | P16: P | Q16: H | R16: P | S16: P | T16: P | U16: P | V16: P | W16: P | X16: H | Y16: P | Z16: P | AA16: P | AB16: P | AC16: H | AD16: P | AE16: H | AF16: P | AG16: P | AH16: P | AI16: P | AJ16: 25 | AK16: 1 | AL16: 2 | AM16: 31 | AN16: =AN15 -> 27 | AO16: 27 | AP16: 5
A17: 14 | B17: Lijin k c | C17: EM1037 | D17: Accountant | E17: P | F17: P | G17: P | H17: P | I17: P | J17: H | K17: P | L17: P | M17: P | N17: P | O17: P | P17: P | Q17: H | R17: P | S17: P | T17: P | U17: P | V17: P | W17: P | X17: H | Y17: P | Z17: P | AA17: P | AB17: P | AC17: H | AD17: P | AE17: H | AF17: P | AG17: P | AH17: P | AI17: P | AJ17: 26 | AK17: 0 | AL17: 2 | AM17: 31 | AN17: =AN16 -> 27 | AO17: 27 | AP17: 5
A18: 15 | B18: Sayad K M | C18: EM1038 | D18: Project Manager | E18: P | F18: P | G18: P | H18: P | I18: P | J18: H | K18: P | L18: P | M18: P | N18: P | O18: P | P18: P | Q18: H | R18: P | S18: P | T18: P | U18: P | V18: P | W18: P | X18: H | Y18: P | Z18: P | AA18: P | AB18: P | AC18: H | AD18: P | AE18: H | AF18: P | AG18: P | AH18: P | AI18: P | AJ18: 26 | AK18: 0 | AL18: 2 | AM18: 31 | AN18: =AN17 -> 27 | AO18: 27 | AP18: 5
A19: 16 | B19: Ajil k Mohanan | C19: EM1039 | D19: Web Developer | E19: P | F19: P | G19: P | H19: P | I19: P | J19: H | K19: P | L19: P | M19: P | N19: P | O19: P | P19: P | Q19: H | R19: P | S19: P | T19: P | U19: P | V19: P | W19: P | X19: H | Y19: P | Z19: P | AA19: P | AB19: P | AC19: H | AD19: P | AE19: H | AF19: P | AG19: P | AH19: P | AI19: P | AJ19: 26 | AK19: 0 | AL19: 2 | AM19: 31 | AN19: =AN18 -> 27 | AO19: 27 | AP19: 5
A20: 17 | B20: Edison ML | C20: EM1040 | D20: Web Developer | E20: P | F20: P | G20: P | H20: P | I20: P | J20: H | K20: P | L20: P | M20: P | N20: L | O20: P | P20: P | Q20: H | R20: P | S20: L | T20: P | U20: P | V20: P | W20: P | X20: H | Y20: P | Z20: P | AA20: P | AB20: P | AC20: H | AD20: P | AE20: H | AF20: P | AG20: P | AH20: P | AI20: P | AJ20: 24 | AK20: 2 | AL20: 2 | AM20: 31 | AN20: =AN19 -> 27 | AO20: 25 | AP20: 5
A21: 18 | B21: Basil P E | C21: EM1041 | D21: Web Developer | E21: P | F21: P | G21: P | H21: P | I21: P | J21: H | K21: P | L21: P | M21: P | N21: P | O21: P | P21: P | Q21: H | R21: P | S21: P | T21: P | U21: P | V21: P | W21: P | X21: H | Y21: P | Z21: P | AA21: P | AB21: P | AC21: H | AD21: P | AE21: H | AF21: P | AG21: P | AH21: P | AI21: P | AJ21: 26 | AK21: 0 | AL21: 2 | AM21: 31 | AN21: =AN20 -> 27 | AO21: 27 | AP21: 5
A22: 19 | B22: Jobin George | C22: EM1042 | D22: Web Developer | E22: P | F22: P | G22: P | H22: P | I22: P | J22: H | K22: P | L22: P | M22: P | N22: P | O22: P | P22: P | Q22: H | R22: P | S22: P | T22: P | U22: P | V22: P | W22: P | X22: H | Y22: P | Z22: P | AA22: P | AB22: L | AC22: H | AD22: P | AE22: H | AF22: L | AG22: P | AH22: L | AI22: P | AJ22: 23 | AK22: 3 | AL22: 2 | AM22: 31 | AN22: =AN21 -> 27 | AO22: 24 | AP22: 5
A23: 20 | B23: Jismon Tomy | C23: EM1043 | D23: Web Developer | E23: P | F23: P | G23: P | H23: P | I23: P | J23: H | K23: P | L23: P | M23: P | N23: P | O23: P | P23: P | Q23: H | R23: P | S23: P | T23: L | U23: P | V23: P | W23: P | X23: H | Y23: P | Z23: P | AA23: P | AB23: P | AC23: H | AD23: P | AE23: H | AF23: P | AG23: P | AH23: P | AI23: P | AJ23: 25 | AK23: 1 | AL23: 2 | AM23: 31 | AN23: =AN22 -> 27 | AO23: 27 | AP23: 5
A24: 21 | B24: Sharafali P | C24: EM1044 | D24: Ux/Ui Designer | E24: P | F24: P | G24: P | H24: P | I24: P | J24: H | K24: P | L24: P | M24: P | N24: P | O24: P | P24: P | Q24: H | R24: P | S24: P | T24: P | U24: P | V24: P | W24: P | X24: H | Y24: P | Z24: P | AA24: P | AB24: P | AC24: H | AD24: P | AE24: H | AF24: P | AG24: P | AH24: P | AI24: L | AJ24: 25 | AK24: 1 | AL24: 2 | AM24: 31 | AN24: =AN23 -> 27 | AO24: 27 | AP24: 5
A25: 22 | AJ25: 0 | AK25: 0 | AM25: 31 | AN25: =AN24 -> 27 | AO25: 27 | AP25: 0
A26: 23 | AJ26: 0 | AK26: 0 | AM26: 31 | AN26: =AN25 -> 27 | AO26: 27 | AP26: 0
A27: 24 | AJ27: 0 | AK27: 0 | AM27: 0 | AN27: =AN26 -> 27 | AO27: 27 | AP27: 0
A28: 25 | AJ28: 0 | AK28: 0 | AM28: 0 | AN28: =AN27 -> 27 | AO28: 27 | AP28: 0
A29: 26 | AJ29: 0 | AK29: 0 | AM29: 0 | AN29: =AN28 -> 27 | AO29: 27 | AP29: 0
A30: 27 | AJ30: 0 | AK30: 0 | AM30: 0 | AN30: =AN29 -> 27 | AO30: 27 | AP30: 0
A31: 28 | AJ31: 0 | AK31: 0 | AM31: 0 | AN31: =AN30 -> 27 | AO31: 27 | AP31: 0
A32: 29 | AJ32: 0 | AK32: 0 | AM32: 0 | AN32: =AN31 -> 27 | AO32: 27 | AP32: 0
A33: 30 | AJ33: 0 | AK33: 0 | AM33: 0 | AN33: =AN32 -> 27 | AO33: 27 | AP33: 0
A34: 31 | AJ34: 0 | AK34: 0 | AM34: 0 | AN34: =AN33 -> 27 | AO34: 27 | AP34: 0
A35: 32 | AJ35: 0 | AK35: 0 | AM35: 0 | AN35: =AN34 -> 27 | AO35: 27 | AP35: 0
A36: 33 | AJ36: 0 | AK36: 0 | AM36: 0 | AN36: =AN35 -> 27 | AO36: 27 | AP36: 0
A37: 34 | AJ37: 0 | AK37: 0 | AM37: 0 | AN37: =AN36 -> 27 | AO37: 27 | AP37: 0
A38: 35 | AJ38: 0 | AK38: 0 | AM38: 0 | AN38: =AN37 -> 27 | AO38: 27 | AP38: 0
A39: 36 | AJ39: 0 | AK39: 0 | AM39: 0 | AN39: =AN38 -> 27 | AO39: 27 | AP39: 0
A40: 37 | AJ40: 0 | AK40: 0 | AM40: 0 | AN40: =AN39 -> 27 | AO40: 27 | AP40: 0
A41: 38 | AJ41: 0 | AK41: 0 | AM41: 0 | AN41: =AN40 -> 27 | AO41: 27 | AP41: 0
A42: 39 | AJ42: 0 | AK42: 0 | AM42: 0 | AN42: =AN41 -> 27 | AO42: 27 | AP42: 0
A43: 40 | AJ43: 0 | AK43: 0 | AM43: 0 | AN43: =AN42 -> 27 | AO43: 27 | AP43: 0
B44: =COUNTA(B4:B43) -> 21 | C44: Daily Employee Strength | E44: =COUNTIF(E4:E43, "P") -> 20 | F44: =COUNTIF(F4:F43, "P") -> 19 | G44: =COUNTIF(G4:G43, "P") -> 21 | H44: =COUNTIF(H4:H43, "P") -> 21 | I44: =COUNTIF(I4:I43, "P") -> 20 | J44: =COUNTIF(J4:J43, "P") -> 0 | K44: =COUNTIF(K4:K43, "P") -> 21 | L44: =COUNTIF(L4:L43, "P") -> 20 | M44: =COUNTIF(M4:M43, "P") -> 21 | N44: =COUNTIF(N4:N43, "P") -> 19 | O44: =COUNTIF(O4:O43, "P") -> 21 | P44: =COUNTIF(P4:P43, "P") -> 21 | Q44: =COUNTIF(Q4:Q43, "P") -> 0 | R44: =COUNTIF(R4:R43, "P") -> 21 | S44: =COUNTIF(S4:S43, "P") -> 20 | T44: =COUNTIF(T4:T43, "P") -> 20 | U44: =COUNTIF(U4:U43, "P") -> 20 | V44: =COUNTIF(V4:V43, "P") -> 20 | W44: =COUNTIF(W4:W43, "P") -> 21 | X44: =COUNTIF(X4:X43, "P") -> 0 | Y44: =COUNTIF(Y4:Y43, "P") -> 21 | Z44: =COUNTIF(Z4:Z43, "P") -> 21 | AA44: =COUNTIF(AA4:AA43, "P") -> 20 | AB44: =COUNTIF(AB4:AB43, "P") -> 19 | AC44: =COUNTIF(AC4:AC43, "P") -> 0 | AD44: =COUNTIF(AD4:AD43, "P") -> 21 | AE44: =COUNTIF(AE4:AE43, "P") -> 0 | AF44: =COUNTIF(AF4:AF43, "P") -> 18 | AG44: =COUNTIF(AG4:AG43, "P") -> 20 | AH44: =COUNTIF(AH4:AH43, "P") -> 19 | AI44: =COUNTIF(AI4:AI43, "P") -> 19

Sheet Database
A1: 1 | B1: =A1+1 -> 2 | C1: =B1+1 -> 3 | D1: 4 | E1: 5 | F1: 6 | G1: 7 | H1: 8 | I1: 9 | J1: 10 | K1: 11 | L1: 12 | M1: 13 | N1: 14 | O1: 15 | P1: 16 | Q1: 17 | R1: 18 | S1: 19 | T1: 20 | U1: 21 | V1: 22 | W1: 23 | X1: 24 | Y1: 25 | Z1: 26 | AA1: 27 | AB1: 28 | AC1: 29 | AD1: 30 | AE1: 31 | AF1: 32 | AG1: 33 | AH1: 34 | AI1: 35 | AJ1: 36
J2: TOTAL GROSS SALARY | X2: TOTAL DEDUCTIONS
A3: Name | B3: Designation | C3: Month | D3: Year | E3: Working Days | F3: Allowed Leave | G3: Leave taken | H3: Worked Days | I3: CTC | J3: =CONCATENATE("CTC for "&C4&" ",D4) -> CTC for May 2018 | K3: Basic Salary | L3: DA | M3: HRA | N3: Conveyance | O3: Conv Working | P3: Medical Expenses | Q3: Medi Working | R3: Spec working | S3: Special | T3: Total working | U3: Bonus | V3: TA | W3: TOTAL | X3: Contribution to PF | Y3: Profession Tax | Z3: TDS | AA3: Salary Advance | AB3: TOTAL | AC3: NET PAYABLE | AD3: Gender | AE3: Prefix | AF3: Name of Authorised Signatory | AG3: PF Applicable | AH3: Medical Bill Submitted | AI3: Medical Bill Amount | AJ3: Your Company Name
A4: =IF('Employee Attendance Template'!B4="","",'Employee Attendance Template'!B4) -> Raj Sharma | B4: =IF('Employee Attendance Template'!D4="","",'Employee Attendance Template'!D4) -> Chief Technical Officer | C4: May | D4: 2018 | E4: =IF(A4="",0,'Employee Attendance Template'!AN4) -> 27 | F4: =IF(A4="",0,'Employee Attendance Template'!AL4) -> 2 | G4: =IF(A4="",0,'Employee Attendance Template'!AK4) -> 5 | H4: =IF(G4>=F4,E4-G4+F4,E4) -> 24 | I4: 60000 | J4: =IF(H4=0,"",ROUND(I4/E4*H4,-1)) -> 53330 | K4: =IF(H4=0,"",ROUND($J4/E4*H4*50%,-1)) -> 23700 | L4: =IF(H4=0,"",ROUND(J4/E4*H4*10%,-1)) -> 4740 | M4: =IF(H4=0,"",ROUND(J4/E4*H4*25%,-1)) -> 11850 | N4: =IF(H4=0,"",1600) -> 1600 | O4: =IF(H4=0,"",ROUND(N4/E4*H4,-1)) -> 1420 | P4: =MIN(1250,IF(AH4="Yes",IF(H4=0,"",AI4),0)) -> 1250 | R4: =IF(H4=0,"",ROUND(J4-T4,-1)) -> 10370 | S4: =IF(R4<=0,0,R4) -> 10370 | T4: =IF(H4=0,"",SUM(K4:M4)+O4+P4) -> 42960 | U4: 13100 | V4: 0 | W4: =IF(H4=0,"",SUM(K4:M4)+O4+Q4+S4+U4+V4) -> 65180 | X4: =ROUND(MIN(1800,IF(AG4="Yes",SUM(K4:L4)*12%,0)),-1) -> 1800 | Z4: 7000 | AB4: =SUM(X4:AA4) -> 8800 | AC4: =IFERROR(W4-AB4,"") -> 56380 | AD4: Male | AE4: =IF(AD4=0,"",IF(AD4="Male","Mr",IF(AD4="Female","Mrs"))) -> Mr | AF4: Managing Director | AG4: Yes | AH4: Yes | AI4: 1250 | AJ4: ABC & Company Ltd
A5: =IF('Employee Attendance Template'!B5="","",'Employee Attendance Template'!B5) -> Sharad Gandhi | B5: =IF('Employee Attendance Template'!D5="","",'Employee Attendance Template'!D5) -> Accountant | C5: =IF(A5=0,"",C$4) -> May | D5: =IF(A5=0,"",D$4) -> 2018 | E5: =IF(A5="",0,'Employee Attendance Template'!AN5) -> 27 | F5: =IF(A5="",0,'Employee Attendance Template'!AL5) -> 2 | G5: =IF(A5="",0,'Employee Attendance Template'!AK5) -> 3 | H5: =IF(G5>=F5,E5-G5+F5,E5) -> 26 | I5: 30000 | J5: =IF(H5=0,"",ROUND(I5/E5*H5,-1)) -> 28890 | K5: =IF(H5=0,"",ROUND($J5/E5*H5*50%,-1)) -> 13910 | L5: =IF(H5=0,"",ROUND(J5/E5*H5*10%,-1)) -> 2780 | M5: =IF(H5=0,"",ROUND(J5/E5*H5*25%,-1)) -> 6960 | N5: =IF(H5=0,"",1600) -> 1600 | O5: =IF(H5=0,"",ROUND(N5/E5*H5,-1)) -> 1540 | P5: =MIN(1250,IF(AH5="Yes",IF(H5=0,"",AI5),0)) -> 1250 | R5: =IF(H5=0,"",ROUND(J5-T5,-1)) -> 2450 | S5: 2450 | T5: =IF(H5=0,"",SUM(K5:M5)+O5+P5) -> 26440 | U5: 2300 | V5: 0 | W5: 29940 | X5: =ROUND(MIN(1800,IF(AG5="Yes",SUM(K5:L5)*12%,0)),-1) -> 1800 | Z5: 500 | AB5: 2300 | AC5: 27640 | AD5: Male | AE5: Mr | AF5: =IF(A5=0,"",AF$4) -> Managing Director | AG5: Yes | AH5: Yes | AI5: 1250 | AJ5: ABC & Company Ltd
A6: =IF('Employee Attendance Template'!B6="","",'Employee Attendance Template'!B6) -> Danish D'Souza | B6: =IF('Employee Attendance Template'!D6="","",'Employee Attendance Template'!D6) -> Senior Web Developer | C6: May | D6: 2018 | E6: =IF(A6="",0,'Employee Attendance Template'!AN6) -> 27 | F6: =IF(A6="",0,'Employee Attendance Template'!AL6) -> 2 | G6: =IF(A6="",0,'Employee Attendance Template'!AK6) -> 0 | H6: 27 | I6: 20000 | J6: 20000 | K6: 10000 | L6: 2000 | M6: 5000 | N6: 1000 | O6: 1000 | P6: 1250 | R6: 750 | S6: 750 | T6: 19250 | U6: 0 | V6: 0 | W6: 18750 | X6: 1440 | AB6: 1440 | AC6: 17310 | AD6: Male | AE6: Mr | AF6: =IF(A6=0,"",AF$4) -> Managing Director | AG6: Yes | AH6: Yes | AI6: 2000 | AJ6: ABC & Company Ltd
A7: =IF('Employee Attendance Template'!B7="","",'Employee Attendance Template'!B7) -> Pawan Patil | B7: =IF('Employee Attendance Template'!D7="","",'Employee Attendance Template'!D7) -> Senior Ux/Ui Developer | C7: May | D7: 2018 | E7: =IF(A7="",0,'Employee Attendance Template'!AN7) -> 27 | F7: =IF(A7="",0,'Employee Attendance Template'!AL7) -> 2 | G7: =IF(A7="",0,'Employee Attendance Template'!AK7) -> 1 | H7: 27 | I7: 25000 | J7: 25000 | K7: 12500 | L7: 2500 | M7: 6250 | N7: =IF(H7=0,"",1600) -> 1600 | O7: 1600 | P7: 1250 | R7: 900 | S7: 900 | T7: 24100 | U7: 0 | V7: 0 | W7: 23750 | X7: 1800 | AB7: 1800 | AC7: 21950 | AD7: Male | AE7: Mr | AF7: =IF(A7=0,"",AF$4) -> Managing Director | AG7: Yes | AH7: Yes | AI7: 1250 | AJ7: ABC & Company Ltd
A8: =IF('Employee Attendance Template'!B8="","",'Employee Attendance Template'!B8) -> Rijo Paul | B8: =IF('Employee Attendance Template'!D8="","",'Employee Attendance Template'!D8) -> Senior Web Developer | C8: May | D8: 2018 | E8: =IF(A8="",0,'Employee Attendance Template'!AN8) -> 27 | F8: =IF(A8="",0,'Employee Attendance Template'!AL8) -> 2 | G8: =IF(A8="",0,'Employee Attendance Template'!AK8) -> 1 | H8: 27 | I8: 22000 | J8: 22000 | K8: 11000 | L8: 2200 | M8: 5500 | N8: 1100 | O8: 1100 | P8: 1250 | R8: 950 | S8: 950 | T8: 21050 | U8: 2300 | V8: 0 | W8: 23050 | X8: 1580 | AB8: 1580 | AC8: 21470 | AD8: Male | AE8: Mr | AF8: =IF(A8=0,"",AF$4) -> Managing Director | AG8: Yes | AH8: Yes | AI8: 2200 | AJ8: ABC & Company Ltd
A9: =IF('Employee Attendance Template'!B9="","",'Employee Attendance Template'!B9) -> Joseph P | B9: =IF('Employee Attendance Template'!D9="","",'Employee Attendance Template'!D9) -> Senior Web Developer | C9: May | D9: 2018 | E9: =IF(A9="",0,'Employee Attendance Template'!AN9) -> 27 | F9: =IF(A9="",0,'Employee Attendance Template'!AL9) -> 2 | G9: =IF(A9="",0,'Employee Attendance Template'!AK9) -> 2 | H9: 27 | I9: 14000 | J9: 14000 | K9: 7000 | L9: 1400 | M9: 3500 | N9: 700 | O9: 700 | P9: 1250 | R9: 150 | S9: 150 | T9: 13850 | U9: 2300 | V9: 0 | W9: 15050 | X9: 1010 | AB9: 1010 | AC9: 14040 | AD9: Male | AE9: Mr | AF9: Managing Director | AG9: Yes | AH9: Yes | AI9: 1400 | AJ9: ABC & Company Ltd
A10: =IF('Employee Attendance Template'!B10="","",'Employee Attendance Template'!B10) -> Aakash Patel | B10: =IF('Employee Attendance Template'!D10="","",'Employee Attendance Template'!D10) -> Web Developer | C10: May | D10: 2018 | E10: =IF(A10="",0,'Employee Attendance Template'!AN10) -> 27 | F10: =IF(A10="",0,'Employee Attendance Template'!AL10) -> 2 | G10: =IF(A10="",0,'Employee Attendance Template'!AK10) -> 0 | H10: 27 | I10: 15000 | J10: 15000 | K10: 7500 | L10: 1500 | M10: 3750 | N10: 600 | O10: 600 | P10: 1200 | R10: 450 | S10: 450 | T10: 14550 | U10: 0 | V10: 0 | W10: 13800 | X10: 1080 | AB10: 1080 | AC10: 12720 | AD10: Male | AE10: Mr | AF10: Managing Director | AG10: Yes | AH10: Yes | AI10: 1200 | AJ10: ABC & Company Ltd
A11: =IF('Employee Attendance Template'!B11="","",'Employee Attendance Template'!B11) -> Ganesh Rahu | B11: =IF('Employee Attendance Template'!D11="","",'Employee Attendance Template'!D11) -> Ux/Ui Designer | C11: May | D11: 2018 | E11: =IF(A11="",0,'Employee Attendance Template'!AN11) -> 27 | F11: =IF(A11="",0,'Employee Attendance Template'!AL11) -> 2 | G11: =IF(A11="",0,'Employee Attendance Template'!AK11) -> 0 | H11: 27 | I11: 14000 | J11: 14000 | K11: 7000 | L11: 1400 | M11: 3500 | N11: 600 | O11: 600 | P11: 1200 | R11: 300 | S11: =IF(R11<=0,0,R11) -> 300 | T11: 13700 | U11: 0 | V11: 0 | W11: 12800 | X11: 1010 | AB11: 1010 | AC11: 11790 | AD11: Male | AE11: Mr | AF11: Managing Director | AG11: Yes | AH11: Yes | AI11: 1200 | AJ11: ABC & Company Ltd
A12: =IF('Employee Attendance Template'!B12="","",'Employee Attendance Template'!B12) -> Vinudas K.S | B12: =IF('Employee Attendance Template'!D12="","",'Employee Attendance Template'!D12) -> Web Developer | C12: May | D12: 2018 | E12: =IF(A12="",0,'Employee Attendance Template'!AN12) -> 27 | F12: =IF(A12="",0,'Employee Attendance Template'!AL12) -> 2 | G12: =IF(A12="",0,'Employee Attendance Template'!AK12) -> 0 | H12: 27 | I12: 14000 | J12: 14000 | K12: 7000 | L12: 1400 | M12: 3500 | N12: 700 | O12: 700 | P12: 1250 | R12: 150 | S12: 150 | T12: 13850 | U12: 1500 | V12: 0 | W12: 14250 | X12: 1010 | AB12: 1010 | AC12: 13240 | AD12: Male | AE12: Mr | AF12: Managing Director | AG12: Yes | AH12: Yes | AI12: 1400 | AJ12: ABC & Company Ltd
A13: =IF('Employee Attendance Template'!B13="","",'Employee Attendance Template'!B13) -> Divya Kumar | B13: =IF('Employee Attendance Template'!D13="","",'Employee Attendance Template'!D13) -> Web Developer | C13: May | D13: 2018 | E13: =IF(A13="",0,'Employee Attendance Template'!AN13) -> 27 | F13: =IF(A13="",0,'Employee Attendance Template'!AL13) -> 2 | G13: =IF(A13="",0,'Employee Attendance Template'!AK13) -> 2 | H13: 27 | I13: 8000 | J13: 8000 | K13: 4000 | L13: 800 | M13: 2000 | N13: 400 | O13: 400 | P13: 800 | R13: 0 | S13: 0 | T13: 8000 | U13: 0 | V13: 0 | W13: 7200 | X13: 580 | AB13: 580 | AC13: 6620 | AD13: Female | AE13: Mrs | AF13: Managing Director | AG13: Yes | AH13: Yes | AI13: 800 | AJ13: ABC & Company Ltd
A14: =IF('Employee Attendance Template'!B14="","",'Employee Attendance Template'!B14) -> Shilpa R | B14: =IF('Employee Attendance Template'!D14="","",'Employee Attendance Template'!D14) -> QAA | C14: May | D14: 2018 | E14: =IF(A14="",0,'Employee Attendance Template'!AN14) -> 27 | F14: =IF(A14="",0,'Employee Attendance Template'!AL14) -> 2 | G14: =IF(A14="",0,'Employee Attendance Template'!AK14) -> 0 | H14: 27 | I14: 8000 | J14: 8000 | K14: 4000 | L14: 800 | M14: 2000 | N14: 387 | O14: 390 | P14: 774 | R14: 40 | S14: 40 | T14: 7964 | U14: 0 | V14: 0 | W14: 7230 | X14: 580 | AB14: 580 | AC14: 6650 | AD14: Female | AE14: Mrs | AF14: Managing Director | AG14: Yes | AH14: Yes | AI14: 774 | AJ14: ABC & Company Ltd
A15: =IF('Employee Attendance Template'!B15="","",'Employee Attendance Template'!B15) -> Sindhu J.P | B15: =IF('Employee Attendance Template'!D15="","",'Employee Attendance Template'!D15) -> Web Developer | C15: May | D15: 2018 | E15: =IF(A15="",0,'Employee Attendance Template'!AN15) -> 27 | F15: =IF(A15="",0,'Employee Attendance Template'!AL15) -> 2 | G15: =IF(A15="",0,'Employee Attendance Template'!AK15) -> 0 | H15: 27 | I15: 8000 | J15: 8000 | K15: 4000 | L15: 800 | M15: 2000 | N15: 400 | O15: 400 | P15: 800 | R15: 0 | S15: 0 | T15: 8000 | U15: 0 | V15: 0 | W15: 7200 | X15: 580 | AB15: 580 | AC15: 6620 | AD15: Female | AE15: Mrs | AF15: Managing Director | AG15: Yes | AH15: Yes | AI15: 800 | AJ15: ABC & Company Ltd
A16: =IF('Employee Attendance Template'!B16="","",'Employee Attendance Template'!B16) -> Deepthi P.S | B16: =IF('Employee Attendance Template'!D16="","",'Employee Attendance Template'!D16) -> QAA | C16: May | D16: 2018 | E16: =IF(A16="",0,'Employee Attendance Template'!AN16) -> 27 | F16: =IF(A16="",0,'Employee Attendance Template'!AL16) -> 2 | G16: =IF(A16="",0,'Employee Attendance Template'!AK16) -> 1 | H16: 27 | I16: 8000 | J16: 8000 | K16: 4000 | L16: 800 | M16: 2000 | N16: 181 | O16: 180 | P16: 749 | R16: 270 | S16: 270 | T16: 7729 | U16: 0 | V16: 0 | W16: 7250 | X16: 580 | AB16: 580 | AC16: 6670 | AD16: Female | AE16: Mrs | AF16: Managing Director | AG16: Yes | AH16: Yes | AI16: 749 | AJ16: ABC & Company Ltd
A17: =IF('Employee Attendance Template'!B17="","",'Employee Attendance Template'!B17) -> Lijin k c | B17: =IF('Employee Attendance Template'!D17="","",'Employee Attendance Template'!D17) -> Accountant | C17: May | D17: 2018 | E17: =IF(A17="",0,'Employee Attendance Template'!AN17) -> 27 | F17: =IF(A17="",0,'Employee Attendance Template'!AL17) -> 2 | G17: =IF(A17="",0,'Employee Attendance Template'!AK17) -> 0 | H17: 27 | I17: 13000 | J17: 13000 | K17: 6500 | L17: 1300 | M17: 3250 | N17: 500 | O17: 500 | P17: 1000 | R17: 450 | S17: 450 | T17: 12550 | U17: 2000 | V17: 0 | W17: 14000 | X17: 940 | AB17: 940 | AC17: 13060 | AD17: Male | AE17: =IF(AD17=0,"",IF(AD17="Male","Mr",IF(AD17="Female","Mrs"))) -> Mr | AF17: Managing Director | AG17: Yes | AH17: Yes | AI17: 1000 | AJ17: ABC & Company Ltd
A18: =IF('Employee Attendance Template'!B18="","",'Employee Attendance Template'!B18) -> Sayad K M | B18: =IF('Employee Attendance Template'!D18="","",'Employee Attendance Template'!D18) -> Project Manager | C18: May | D18: 2018 | E18: =IF(A18="",0,'Employee Attendance Template'!AN18) -> 27 | F18: =IF(A18="",0,'Employee Attendance Template'!AL18) -> 2 | G18: =IF(A18="",0,'Employee Attendance Template'!AK18) -> 0 | H18: 27 | I18: 35000 | J18: 35000 | K18: 17500 | L18: 3500 | M18: 8750 | N18: =IF(H18=0,"",1600) -> 1600 | O18: 1600 | P18: 1250 | R18: 2400 | S18: =IF(R18<=0,0,R18) -> 2400 | T18: 32600 | U18: 2000 | V18: 0 | W18: 35750 | X18: 1800 | Z18: 2000 | AB18: 3800 | AC18: 31950 | AD18: Male | AE18: =IF(AD18=0,"",IF(AD18="Male","Mr",IF(AD18="Female","Mrs"))) -> Mr | AF18: Managing Director | AG18: Yes | AH18: Yes | AI18: 1250 | AJ18: ABC & Company Ltd
A19: =IF('Employee Attendance Template'!B19="","",'Employee Attendance Template'!B19) -> Ajil k Mohanan | B19: =IF('Employee Attendance Template'!D19="","",'Employee Attendance Template'!D19) -> Web Developer | C19: May | D19: 2018 | E19: =IF(A19="",0,'Employee Attendance Template'!AN19) -> 27 | F19: =IF(A19="",0,'Employee Attendance Template'!AL19) -> 2 | G19: =IF(A19="",0,'Employee Attendance Template'!AK19) -> 0 | H19: 27 | I19: 22000 | J19: 22000 | K19: 11000 | L19: 2200 | M19: 5500 | N19: 500 | O19: 500 | P19: 1250 | R19: 1550 | S19: 1550 | T19: 20450 | U19: 0 | V19: 0 | W19: 20750 | X19: 1580 | AB19: 1580 | AC19: =IFERROR(W19-AB19,"") -> 19170 | AD19: Male | AE19: Mr | AF19: Managing Director | AG19: Yes | AH19: Yes | AI19: 2000 | AJ19: ABC & Company Ltd
A20: =IF('Employee Attendance Template'!B20="","",'Employee Attendance Template'!B20) -> Edison ML | B20: =IF('Employee Attendance Template'!D20="","",'Employee Attendance Template'!D20) -> Web Developer | C20: May | D20: 2018 | E20: =IF(A20="",0,'Employee Attendance Template'!AN20) -> 27 | F20: =IF(A20="",0,'Employee Attendance Template'!AL20) -> 2 | G20: =IF(A20="",0,'Employee Attendance Template'!AK20) -> 2 | H20: 27 | I20: 12000 | J20: 12000 | K20: 6000 | L20: 1200 | M20: 3000 | N20: 600 | O20: 600 | P20: 1200 | R20: 0 | S20: 0 | T20: 12000 | U20: 1000 | V20: 0 | W20: 11800 | X20: 860 | AB20: 860 | AC20: 10940 | AD20: Male | AE20: Mr | AF20: Managing Director | AG20: Yes | AH20: Yes | AI20: 1200 | AJ20: ABC & Company Ltd
A21: =IF('Employee Attendance Template'!B21="","",'Employee Attendance Template'!B21) -> Basil P E | B21: =IF('Employee Attendance Template'!D21="","",'Employee Attendance Template'!D21) -> Web Developer | C21: May | D21: 2018 | E21: =IF(A21="",0,'Employee Attendance Template'!AN21) -> 27 | F21: =IF(A21="",0,'Employee Attendance Template'!AL21) -> 2 | G21: =IF(A21="",0,'Employee Attendance Template'!AK21) -> 0 | H21: 27 | I21: 22000 | J21: 22000 | K21: 11000 | L21: 2200 | M21: 5500 | N21: 267 | O21: 270 | P21: 1067 | R21: 1960 | S21: 1960 | T21: 20037 | U21: 5000 | V21: 0 | W21: 25930 | X21: 1580 | AB21: 1580 | AC21: 24350 | AD21: Male | AE21: Mr | AF21: Managing Director | AG21: Yes | AH21: Yes | AI21: 1067 | AJ21: ABC & Company Ltd
A22: =IF('Employee Attendance Template'!B22="","",'Employee Attendance Template'!B22) -> Jobin George | B22: =IF('Employee Attendance Template'!D22="","",'Employee Attendance Template'!D22) -> Web Developer | C22: May | D22: 2018 | E22: =IF(A22="",0,'Employee Attendance Template'!AN22) -> 27 | F22: =IF(A22="",0,'Employee Attendance Template'!AL22) -> 2 | G22: =IF(A22="",0,'Employee Attendance Template'!AK22) -> 3 | H22: 26 | I22: 16000 | J22: 15410 | K22: 7420 | L22: 1480 | M22: 3710 | N22: 800 | O22: 770 | P22: 1250 | R22: 780 | S22: 780 | T22: 14630 | U22: 1500 | V22: 0 | W22: 15660 | X22: 1070 | AB22: 1070 | AC22: 14590 | AD22: Male | AE22: Mr | AF22: Managing Director | AG22: Yes | AH22: Yes | AI22: 1600 | AJ22: ABC & Company Ltd
A23: =IF('Employee Attendance Template'!B23="","",'Employee Attendance Template'!B23) -> Jismon Tomy | B23: =IF('Employee Attendance Template'!D23="","",'Employee Attendance Template'!D23) -> Web Developer | C23: May | D23: 2018 | E23: =IF(A23="",0,'Employee Attendance Template'!AN23) -> 27 | F23: =IF(A23="",0,'Employee Attendance Template'!AL23) -> 2 | G23: =IF(A23="",0,'Employee Attendance Template'!AK23) -> 1 | H23: 27 | I23: 10000 | J23: 10000 | K23: 5000 | L23: 1000 | M23: 2500 | N23: 500 | O23: 500 | P23: 1000 | R23: 0 | S23: 0 | T23: 10000 | U23: 2000 | V23: 0 | W23: 11000 | X23: 720 | AB23: 720 | AC23: 10280 | AD23: Male | AE23: Mr | AF23: Managing Director | AG23: Yes | AH23: Yes | AI23: 1000 | AJ23: ABC & Company Ltd
A24: =IF('Employee Attendance Template'!B24="","",'Employee Attendance Template'!B24) -> Sharafali P | B24: =IF('Employee Attendance Template'!D24="","",'Employee Attendance Template'!D24) -> Ux/Ui Designer | C24: May | D24: 2018 | E24: =IF(A24="",0,'Employee Attendance Template'!AN24) -> 27 | F24: =IF(A24="",0,'Employee Attendance Template'!AL24) -> 2 | G24: =IF(A24="",0,'Employee Attendance Template'!AK24) -> 1 | H24: 27 | I24: 14000 | J24: 14000 | K24: 7000 | L24: 1400 | M24: 3500 | N24: 700 | O24: 700 | P24: 1250 | R24: 150 | S24: 150 | T24: 13850 | U24: 0 | V24: 0 | W24: 12750 | X24: 1010 | AB24: 1010 | AC24: 11740 | AD24: Male | AE24: Mr | AF24: Managing Director | AG24: Yes | AH24: Yes | AI24: 1400 | AJ24: ABC & Company Ltd
A25: =IF('Employee Attendance Template'!B25="","",'Employee Attendance Template'!B25) ->  | B25: =IF('Employee Attendance Template'!D25="","",'Employee Attendance Template'!D25) ->  | E25: =IF(A25="",0,'Employee Attendance Template'!AN25) -> 0 | F25: =IF(A25="",0,'Employee Attendance Template'!AL25) -> 0 | G25: =IF(A25="",0,'Employee Attendance Template'!AK25) -> 0 | H25: =IF(G25>=F25,E25-G25+F25,E25) -> 0 | J25: =IF(H25=0,"",ROUND(I25/E25*H25,-1)) ->  | K25: =IF(H25=0,"",ROUND($J25/E25*H25*50%,-1)) ->  | L25: =IF(H25=0,"",ROUND(J25/E25*H25*10%,-1)) ->  | M25: =IF(H25=0,"",ROUND(J25/E25*H25*25%,-1)) ->  | N25: 0 | P25: =MIN(1250,IF(AH25="Yes",IF(H25=0,"",AI25),0)) -> 0 | R25: =IF(H25=0,"",ROUND(J25-T25,-1)) ->  | S25: =IF(R25<=0,0,R25) ->  | T25: =IF(H25=0,"",SUM(K25:M25)+O25+P25) ->  | U25: 0 | V25: 0 | W25: =IF(H25=0,"",SUM(K25:M25)+O25+Q25+S25+U25+V25) ->  | X25: =ROUND(MIN(1800,IF(AG25="Yes",SUM(K25:L25)*12%,0)),-1) -> 0 | AB25: =SUM(X25:AA25) -> 0 | AC25: =IFERROR(W25-AB25,"") ->  | AD25: Male | AE25: =IF(AD25=0,"",IF(AD25="Male","Mr",IF(AD25="Female","Mrs"))) -> Mr | AF25: =IF(A25=0,"",AF$4) -> Managing Director | AG25: No | AH25: No | AI25: 1400 | AJ25: ABC & Company Ltd
A26: =IF('Employee Attendance Template'!B26="","",'Employee Attendance Template'!B26) ->  | B26: =IF('Employee Attendance Template'!D26="","",'Employee Attendance Template'!D26) ->  | E26: =IF(A26="",0,'Employee Attendance Template'!AN26) -> 0 | F26: =IF(A26="",0,'Employee Attendance Template'!AL26) -> 0 | G26: =IF(A26="",0,'Employee Attendance Template'!AK26) -> 0 | H26: =IF(G26>=F26,E26-G26+F26,E26) -> 0 | J26: =IF(H26=0,"",ROUND(I26/E26*H26,-1)) ->  | K26: =IF(H26=0,"",ROUND($J26/E26*H26*50%,-1)) ->  | L26: =IF(H26=0,"",ROUND(J26/E26*H26*10%,-1)) ->  | M26: =IF(H26=0,"",ROUND(J26/E26*H26*25%,-1)) ->  | N26: 0 | O26: =IF(H26=0,"",ROUND(N26/E26*H26,-1)) ->  | P26: =MIN(1250,IF(AH26="Yes",IF(H26=0,"",AI26),0)) -> 0 | R26: =IF(H26=0,"",ROUND(J26-T26,-1)) ->  | S26: =IF(R26<=0,0,R26) ->  | T26: =IF(H26=0,"",SUM(K26:M26)+O26+P26) ->  | U26: 0 | V26: 0 | W26: =IF(H26=0,"",SUM(K26:M26)+O26+Q26+S26+U26+V26) ->  | X26: =ROUND(MIN(1800,IF(AG26="Yes",SUM(K26:L26)*12%,0)),-1) -> 0 | AB26: =SUM(X26:AA26) -> 0 | AC26: =IFERROR(W26-AB26,"") ->  | AD26: Male | AE26: =IF(AD26=0,"",IF(AD26="Male","Mr",IF(AD26="Female","Mrs"))) -> Mr | AF26: =IF(A26=0,"",AF$4) -> Managing Director | AG26: No | AH26: No | AI26: 1400 | AJ26: ABC & Company Ltd
A27: =IF('Employee Attendance Template'!B27="","",'Employee Attendance Template'!B27) ->  | B27: =IF('Employee Attendance Template'!D27="","",'Employee Attendance Template'!D27) ->  | E27: =IF(A27="",0,'Employee Attendance Template'!AN27) -> 0 | F27: =IF(A27="",0,'Employee Attendance Template'!AL27) -> 0 | G27: =IF(A27="",0,'Employee Attendance Template'!AK27) -> 0 | H27: =IF(G27>=F27,E27-G27+F27,E27) -> 0 | J27: =IF(H27=0,"",ROUND(I27/E27*H27,-1)) ->  | K27: =IF(H27=0,"",ROUND($J27/E27*H27*50%,-1)) ->  | L27: =IF(H27=0,"",ROUND(J27/E27*H27*10%,-1)) ->  | M27: =IF(H27=0,"",ROUND(J27/E27*H27*25%,-1)) ->  | N27: 0 | O27: =IF(H27=0,"",ROUND(N27/E27*H27,-1)) ->  | P27: =MIN(1250,IF(AH27="Yes",IF(H27=0,"",AI27),0)) -> 0 | R27: =IF(H27=0,"",ROUND(J27-T27,-1)) ->  | S27: =IF(R27<=0,0,R27) ->  | T27: =IF(H27=0,"",SUM(K27:M27)+O27+P27) ->  | U27: 0 | V27: 0 | W27: =IF(H27=0,"",SUM(K27:M27)+O27+Q27+S27+U27+V27) ->  | X27: =ROUND(MIN(1800,IF(AG27="Yes",SUM(K27:L27)*12%,0)),-1) -> 0 | AB27: =SUM(X27:AA27) -> 0 | AC27: =IFERROR(W27-AB27,"") ->  | AD27: Male | AE27: =IF(AD27=0,"",IF(AD27="Male","Mr",IF(AD27="Female","Mrs"))) -> Mr | AF27: =IF(A27=0,"",AF$4) -> Managing Director | AG27: No | AH27: No | AI27: 1400 | AJ27: ABC & Company Ltd
A28: =IF('Employee Attendance Template'!B28="","",'Employee Attendance Template'!B28) ->  | B28: =IF('Employee Attendance Template'!D28="","",'Employee Attendance Template'!D28) ->  | E28: =IF(A28="",0,'Employee Attendance Template'!AN28) -> 0 | F28: =IF(A28="",0,'Employee Attendance Template'!AL28) -> 0 | G28: =IF(A28="",0,'Employee Attendance Template'!AK28) -> 0 | H28: =IF(G28>=F28,E28-G28+F28,E28) -> 0 | J28: =IF(H28=0,"",ROUND(I28/E28*H28,-1)) ->  | K28: =IF(H28=0,"",ROUND($J28/E28*H28*50%,-1)) ->  | L28: =IF(H28=0,"",ROUND(J28/E28*H28*10%,-1)) ->  | M28: =IF(H28=0,"",ROUND(J28/E28*H28*25%,-1)) ->  | N28: 0 | O28: =IF(H28=0,"",ROUND(N28/E28*H28,-1)) ->  | P28: =MIN(1250,IF(AH28="Yes",IF(H28=0,"",AI28),0)) -> 0 | R28: =IF(H28=0,"",ROUND(J28-T28,-1)) ->  | S28: =IF(R28<=0,0,R28) ->  | T28: =IF(H28=0,"",SUM(K28:M28)+O28+P28) ->  | U28: 0 | V28: 0 | W28: =IF(H28=0,"",SUM(K28:M28)+O28+Q28+S28+U28+V28) ->  | X28: =ROUND(MIN(1800,IF(AG28="Yes",SUM(K28:L28)*12%,0)),-1) -> 0 | AB28: =SUM(X28:AA28) -> 0 | AC28: =IFERROR(W28-AB28,"") ->  | AD28: Male | AE28: =IF(AD28=0,"",IF(AD28="Male","Mr",IF(AD28="Female","Mrs"))) -> Mr | AF28: =IF(A28=0,"",AF$4) -> Managing Director | AG28: No | AH28: No | AI28: 1400 | AJ28: ABC & Company Ltd
A29: =IF('Employee Attendance Template'!B29="","",'Employee Attendance Template'!B29) ->  | B29: =IF('Employee Attendance Template'!D29="","",'Employee Attendance Template'!D29) ->  | E29: =IF(A29="",0,'Employee Attendance Template'!AN29) -> 0 | F29: =IF(A29="",0,'Employee Attendance Template'!AL29) -> 0 | G29: =IF(A29="",0,'Employee Attendance Template'!AK29) -> 0 | H29: =IF(G29>=F29,E29-G29+F29,E29) -> 0 | J29: =IF(H29=0,"",ROUND(I29/E29*H29,-1)) ->  | K29: =IF(H29=0,"",ROUND($J29/E29*H29*50%,-1)) ->  | L29: =IF(H29=0,"",ROUND(J29/E29*H29*10%,-1)) ->  | M29: =IF(H29=0,"",ROUND(J29/E29*H29*25%,-1)) ->  | N29: 0 | O29: =IF(H29=0,"",ROUND(N29/E29*H29,-1)) ->  | P29: =MIN(1250,IF(AH29="Yes",IF(H29=0,"",AI29),0)) -> 0 | R29: =IF(H29=0,"",ROUND(J29-T29,-1)) ->  | S29: =IF(R29<=0,0,R29) ->  | T29: =IF(H29=0,"",SUM(K29:M29)+O29+P29) ->  | U29: 0 | V29: 0 | W29: =IF(H29=0,"",SUM(K29:M29)+O29+Q29+S29+U29+V29) ->  | X29: =ROUND(MIN(1800,IF(AG29="Yes",SUM(K29:L29)*12%,0)),-1) -> 0 | AB29: =SUM(X29:AA29) -> 0 | AC29: =IFERROR(W29-AB29,"") ->  | AD29: Male | AE29: =IF(AD29=0,"",IF(AD29="Male","Mr",IF(AD29="Female","Mrs"))) -> Mr | AF29: =IF(A29=0,"",AF$4) -> Managing Director | AG29: No | AH29: No | AI29: 1400 | AJ29: ABC & Company Ltd
A30: =IF('Employee Attendance Template'!B30="","",'Employee Attendance Template'!B30) ->  | B30: =IF('Employee Attendance Template'!D30="","",'Employee Attendance Template'!D30) ->  | E30: =IF(A30="",0,'Employee Attendance Template'!AN30) -> 0 | F30: =IF(A30="",0,'Employee Attendance Template'!AL30) -> 0 | G30: =IF(A30="",0,'Employee Attendance Template'!AK30) -> 0 | H30: =IF(G30>=F30,E30-G30+F30,E30) -> 0 | J30: =IF(H30=0,"",ROUND(I30/E30*H30,-1)) ->  | K30: =IF(H30=0,"",ROUND($J30/E30*H30*50%,-1)) ->  | L30: =IF(H30=0,"",ROUND(J30/E30*H30*10%,-1)) ->  | M30: =IF(H30=0,"",ROUND(J30/E30*H30*25%,-1)) ->  | N30: 0 | O30: =IF(H30=0,"",ROUND(N30/E30*H30,-1)) ->  | P30: =MIN(1250,IF(AH30="Yes",IF(H30=0,"",AI30),0)) -> 0 | R30: =IF(H30=0,"",ROUND(J30-T30,-1)) ->  | S30: =IF(R30<=0,0,R30) ->  | T30: =IF(H30=0,"",SUM(K30:M30)+O30+P30) ->  | U30: 0 | V30: 0 | W30: =IF(H30=0,"",SUM(K30:M30)+O30+Q30+S30+U30+V30) ->  | X30: =ROUND(MIN(1800,IF(AG30="Yes",SUM(K30:L30)*12%,0)),-1) -> 0 | AB30: =SUM(X30:AA30) -> 0 | AC30: =IFERROR(W30-AB30,"") ->  | AD30: Male | AE30: =IF(AD30=0,"",IF(AD30="Male","Mr",IF(AD30="Female","Mrs"))) -> Mr | AF30: =IF(A30=0,"",AF$4) -> Managing Director | AG30: No | AH30: No | AI30: 1400 | AJ30: ABC & Company Ltd
A31: =IF('Employee Attendance Template'!B31="","",'Employee Attendance Template'!B31) ->  | B31: =IF('Employee Attendance Template'!D31="","",'Employee Attendance Template'!D31) ->  | E31: =IF(A31="",0,'Employee Attendance Template'!AN31) -> 0 | F31: =IF(A31="",0,'Employee Attendance Template'!AL31) -> 0 | G31: =IF(A31="",0,'Employee Attendance Template'!AK31) -> 0 | H31: =IF(G31>=F31,E31-G31+F31,E31) -> 0 | J31: =IF(H31=0,"",ROUND(I31/E31*H31,-1)) ->  | K31: =IF(H31=0,"",ROUND($J31/E31*H31*50%,-1)) ->  | L31: =IF(H31=0,"",ROUND(J31/E31*H31*10%,-1)) ->  | M31: =IF(H31=0,"",ROUND(J31/E31*H31*25%,-1)) ->  | N31: 0 | O31: =IF(H31=0,"",ROUND(N31/E31*H31,-1)) ->  | P31: =MIN(1250,IF(AH31="Yes",IF(H31=0,"",AI31),0)) -> 0 | R31: =IF(H31=0,"",ROUND(J31-T31,-1)) ->  | S31: =IF(R31<=0,0,R31) ->  | T31: =IF(H31=0,"",SUM(K31:M31)+O31+P31) ->  | U31: 0 | V31: 0 | W31: =IF(H31=0,"",SUM(K31:M31)+O31+Q31+S31+U31+V31) ->  | X31: =ROUND(MIN(1800,IF(AG31="Yes",SUM(K31:L31)*12%,0)),-1) -> 0 | AB31: =SUM(X31:AA31) -> 0 | AC31: =IFERROR(W31-AB31,"") ->  | AD31: Male | AE31: =IF(AD31=0,"",IF(AD31="Male","Mr",IF(AD31="Female","Mrs"))) -> Mr | AF31: =IF(A31=0,"",AF$4) -> Managing Director | AG31: No | AH31: No | AI31: 1400 | AJ31: ABC & Company Ltd
A32: =IF('Employee Attendance Template'!B32="","",'Employee Attendance Template'!B32) ->  | B32: =IF('Employee Attendance Template'!D32="","",'Employee Attendance Template'!D32) ->  | E32: =IF(A32="",0,'Employee Attendance Template'!AN32) -> 0 | F32: =IF(A32="",0,'Employee Attendance Template'!AL32) -> 0 | G32: =IF(A32="",0,'Employee Attendance Template'!AK32) -> 0 | H32: =IF(G32>=F32,E32-G32+F32,E32) -> 0 | J32: =IF(H32=0,"",ROUND(I32/E32*H32,-1)) ->  | K32: =IF(H32=0,"",ROUND($J32/E32*H32*50%,-1)) ->  | L32: =IF(H32=0,"",ROUND(J32/E32*H32*10%,-1)) ->  | M32: =IF(H32=0,"",ROUND(J32/E32*H32*25%,-1)) ->  | N32: 0 | O32: =IF(H32=0,"",ROUND(N32/E32*H32,-1)) ->  | P32: =MIN(1250,IF(AH32="Yes",IF(H32=0,"",AI32),0)) -> 0 | R32: =IF(H32=0,"",ROUND(J32-T32,-1)) ->  | S32: =IF(R32<=0,0,R32) ->  | T32: =IF(H32=0,"",SUM(K32:M32)+O32+P32) ->  | U32: 0 | V32: 0 | W32: =IF(H32=0,"",SUM(K32:M32)+O32+Q32+S32+U32+V32) ->  | X32: =ROUND(MIN(1800,IF(AG32="Yes",SUM(K32:L32)*12%,0)),-1) -> 0 | AB32: =SUM(X32:AA32) -> 0 | AC32: =IFERROR(W32-AB32,"") ->  | AD32: Male | AE32: =IF(AD32=0,"",IF(AD32="Male","Mr",IF(AD32="Female","Mrs"))) -> Mr | AF32: =IF(A32=0,"",AF$4) -> Managing Director | AG32: No | AH32: No | AI32: 1400 | AJ32: ABC & Company Ltd
A33: =IF('Employee Attendance Template'!B33="","",'Employee Attendance Template'!B33) ->  | B33: =IF('Employee Attendance Template'!D33="","",'Employee Attendance Template'!D33) ->  | E33: =IF(A33="",0,'Employee Attendance Template'!AN33) -> 0 | F33: =IF(A33="",0,'Employee Attendance Template'!AL33) -> 0 | G33: =IF(A33="",0,'Employee Attendance Template'!AK33) -> 0 | H33: =IF(G33>=F33,E33-G33+F33,E33) -> 0 | J33: =IF(H33=0,"",ROUND(I33/E33*H33,-1)) ->  | K33: =IF(H33=0,"",ROUND($J33/E33*H33*50%,-1)) ->  | L33: =IF(H33=0,"",ROUND(J33/E33*H33*10%,-1)) ->  | M33: =IF(H33=0,"",ROUND(J33/E33*H33*25%,-1)) ->  | N33: 0 | O33: =IF(H33=0,"",ROUND(N33/E33*H33,-1)) ->  | P33: =MIN(1250,IF(AH33="Yes",IF(H33=0,"",AI33),0)) -> 0 | R33: =IF(H33=0,"",ROUND(J33-T33,-1)) ->  | S33: =IF(R33<=0,0,R33) ->  | T33: =IF(H33=0,"",SUM(K33:M33)+O33+P33) ->  | U33: 0 | V33: 0 | W33: =IF(H33=0,"",SUM(K33:M33)+O33+Q33+S33+U33+V33) ->  | X33: =ROUND(MIN(1800,IF(AG33="Yes",SUM(K33:L33)*12%,0)),-1) -> 0 | AB33: =SUM(X33:AA33) -> 0 | AC33: =IFERROR(W33-AB33,"") ->  | AD33: Male | AE33: =IF(AD33=0,"",IF(AD33="Male","Mr",IF(AD33="Female","Mrs"))) -> Mr | AF33: =IF(A33=0,"",AF$4) -> Managing Director | AG33: No | AH33: No | AI33: 1400 | AJ33: ABC & Company Ltd
A34: =IF('Employee Attendance Template'!B34="","",'Employee Attendance Template'!B34) ->  | B34: =IF('Employee Attendance Template'!D34="","",'Employee Attendance Template'!D34) ->  | E34: =IF(A34="",0,'Employee Attendance Template'!AN34) -> 0 | F34: =IF(A34="",0,'Employee Attendance Template'!AL34) -> 0 | G34: =IF(A34="",0,'Employee Attendance Template'!AK34) -> 0 | H34: =IF(G34>=F34,E34-G34+F34,E34) -> 0 | J34: =IF(H34=0,"",ROUND(I34/E34*H34,-1)) ->  | K34: =IF(H34=0,"",ROUND($J34/E34*H34*50%,-1)) ->  | L34: =IF(H34=0,"",ROUND(J34/E34*H34*10%,-1)) ->  | M34: =IF(H34=0,"",ROUND(J34/E34*H34*25%,-1)) ->  | N34: 0 | O34: =IF(H34=0,"",ROUND(N34/E34*H34,-1)) ->  | P34: =MIN(1250,IF(AH34="Yes",IF(H34=0,"",AI34),0)) -> 0 | R34: =IF(H34=0,"",ROUND(J34-T34,-1)) ->  | S34: =IF(R34<=0,0,R34) ->  | T34: =IF(H34=0,"",SUM(K34:M34)+O34+P34) ->  | U34: 0 | V34: 0 | W34: =IF(H34=0,"",SUM(K34:M34)+O34+Q34+S34+U34+V34) ->  | X34: =ROUND(MIN(1800,IF(AG34="Yes",SUM(K34:L34)*12%,0)),-1) -> 0 | AB34: =SUM(X34:AA34) -> 0 | AC34: =IFERROR(W34-AB34,"") ->  | AD34: Male | AE34: =IF(AD34=0,"",IF(AD34="Male","Mr",IF(AD34="Female","Mrs"))) -> Mr | AF34: =IF(A34=0,"",AF$4) -> Managing Director | AG34: No | AH34: No | AI34: 1400 | AJ34: ABC & Company Ltd
A35: =IF('Employee Attendance Template'!B35="","",'Employee Attendance Template'!B35) ->  | B35: =IF('Employee Attendance Template'!D35="","",'Employee Attendance Template'!D35) ->  | E35: =IF(A35="",0,'Employee Attendance Template'!AN35) -> 0 | F35: =IF(A35="",0,'Employee Attendance Template'!AL35) -> 0 | G35: =IF(A35="",0,'Employee Attendance Template'!AK35) -> 0 | H35: =IF(G35>=F35,E35-G35+F35,E35) -> 0 | J35: =IF(H35=0,"",ROUND(I35/E35*H35,-1)) ->  | K35: =IF(H35=0,"",ROUND($J35/E35*H35*50%,-1)) ->  | L35: =IF(H35=0,"",ROUND(J35/E35*H35*10%,-1)) ->  | M35: =IF(H35=0,"",ROUND(J35/E35*H35*25%,-1)) ->  | N35: 0 | O35: =IF(H35=0,"",ROUND(N35/E35*H35,-1)) ->  | P35: =MIN(1250,IF(AH35="Yes",IF(H35=0,"",AI35),0)) -> 0 | R35: =IF(H35=0,"",ROUND(J35-T35,-1)) ->  | S35: =IF(R35<=0,0,R35) ->  | T35: =IF(H35=0,"",SUM(K35:M35)+O35+P35) ->  | U35: 0 | V35: 0 | W35: =IF(H35=0,"",SUM(K35:M35)+O35+Q35+S35+U35+V35) ->  | X35: =ROUND(MIN(1800,IF(AG35="Yes",SUM(K35:L35)*12%,0)),-1) -> 0 | AB35: =SUM(X35:AA35) -> 0 | AC35: =IFERROR(W35-AB35,"") ->  | AD35: Male | AE35: =IF(AD35=0,"",IF(AD35="Male","Mr",IF(AD35="Female","Mrs"))) -> Mr | AF35: =IF(A35=0,"",AF$4) -> Managing Director | AG35: No | AH35: No | AI35: 1400 | AJ35: ABC & Company Ltd
A36: =IF('Employee Attendance Template'!B36="","",'Employee Attendance Template'!B36) ->  | B36: =IF('Employee Attendance Template'!D36="","",'Employee Attendance Template'!D36) ->  | E36: =IF(A36="",0,'Employee Attendance Template'!AN36) -> 0 | F36: =IF(A36="",0,'Employee Attendance Template'!AL36) -> 0 | G36: =IF(A36="",0,'Employee Attendance Template'!AK36) -> 0 | H36: =IF(G36>=F36,E36-G36+F36,E36) -> 0 | J36: =IF(H36=0,"",ROUND(I36/E36*H36,-1)) ->  | K36: =IF(H36=0,"",ROUND($J36/E36*H36*50%,-1)) ->  | L36: =IF(H36=0,"",ROUND(J36/E36*H36*10%,-1)) ->  | M36: =IF(H36=0,"",ROUND(J36/E36*H36*25%,-1)) ->  | N36: 0 | O36: =IF(H36=0,"",ROUND(N36/E36*H36,-1)) ->  | P36: =MIN(1250,IF(AH36="Yes",IF(H36=0,"",AI36),0)) -> 0 | R36: =IF(H36=0,"",ROUND(J36-T36,-1)) ->  | S36: =IF(R36<=0,0,R36) ->  | T36: =IF(H36=0,"",SUM(K36:M36)+O36+P36) ->  | U36: 0 | V36: 0 | W36: =IF(H36=0,"",SUM(K36:M36)+O36+Q36+S36+U36+V36) ->  | X36: =ROUND(MIN(1800,IF(AG36="Yes",SUM(K36:L36)*12%,0)),-1) -> 0 | AB36: =SUM(X36:AA36) -> 0 | AC36: =IFERROR(W36-AB36,"") ->  | AD36: Male | AE36: =IF(AD36=0,"",IF(AD36="Male","Mr",IF(AD36="Female","Mrs"))) -> Mr | AF36: =IF(A36=0,"",AF$4) -> Managing Director | AG36: No | AH36: No | AI36: 1400 | AJ36: ABC & Company Ltd
A37: =IF('Employee Attendance Template'!B37="","",'Employee Attendance Template'!B37) ->  | B37: =IF('Employee Attendance Template'!D37="","",'Employee Attendance Template'!D37) ->  | E37: =IF(A37="",0,'Employee Attendance Template'!AN37) -> 0 | F37: =IF(A37="",0,'Employee Attendance Template'!AL37) -> 0 | G37: =IF(A37="",0,'Employee Attendance Template'!AK37) -> 0 | H37: =IF(G37>=F37,E37-G37+F37,E37) -> 0 | J37: =IF(H37=0,"",ROUND(I37/E37*H37,-1)) ->  | K37: =IF(H37=0,"",ROUND($J37/E37*H37*50%,-1)) ->  | L37: =IF(H37=0,"",ROUND(J37/E37*H37*10%,-1)) ->  | M37: =IF(H37=0,"",ROUND(J37/E37*H37*25%,-1)) ->  | N37: 0 | O37: =IF(H37=0,"",ROUND(N37/E37*H37,-1)) ->  | P37: =MIN(1250,IF(AH37="Yes",IF(H37=0,"",AI37),0)) -> 0 | R37: =IF(H37=0,"",ROUND(J37-T37,-1)) ->  | S37: =IF(R37<=0,0,R37) ->  | T37: =IF(H37=0,"",SUM(K37:M37)+O37+P37) ->  | U37: 0 | V37: 0 | W37: =IF(H37=0,"",SUM(K37:M37)+O37+Q37+S37+U37+V37) ->  | X37: =ROUND(MIN(1800,IF(AG37="Yes",SUM(K37:L37)*12%,0)),-1) -> 0 | AB37: =SUM(X37:AA37) -> 0 | AC37: =IFERROR(W37-AB37,"") ->  | AD37: Male | AE37: =IF(AD37=0,"",IF(AD37="Male","Mr",IF(AD37="Female","Mrs"))) -> Mr | AF37: =IF(A37=0,"",AF$4) -> Managing Director | AG37: No | AH37: No | AI37: 1400 | AJ37: ABC & Company Ltd
A38: =IF('Employee Attendance Template'!B38="","",'Employee Attendance Template'!B38) ->  | B38: =IF('Employee Attendance Template'!D38="","",'Employee Attendance Template'!D38) ->  | E38: =IF(A38="",0,'Employee Attendance Template'!AN38) -> 0 | F38: =IF(A38="",0,'Employee Attendance Template'!AL38) -> 0 | G38: =IF(A38="",0,'Employee Attendance Template'!AK38) -> 0 | H38: =IF(G38>=F38,E38-G38+F38,E38) -> 0 | J38: =IF(H38=0,"",ROUND(I38/E38*H38,-1)) ->  | K38: =IF(H38=0,"",ROUND($J38/E38*H38*50%,-1)) ->  | L38: =IF(H38=0,"",ROUND(J38/E38*H38*10%,-1)) ->  | M38: =IF(H38=0,"",ROUND(J38/E38*H38*25%,-1)) ->  | N38: 0 | O38: =IF(H38=0,"",ROUND(N38/E38*H38,-1)) ->  | P38: =MIN(1250,IF(AH38="Yes",IF(H38=0,"",AI38),0)) -> 0 | R38: =IF(H38=0,"",ROUND(J38-T38,-1)) ->  | S38: =IF(R38<=0,0,R38) ->  | T38: =IF(H38=0,"",SUM(K38:M38)+O38+P38) ->  | U38: 0 | V38: 0 | W38: =IF(H38=0,"",SUM(K38:M38)+O38+Q38+S38+U38+V38) ->  | X38: =ROUND(MIN(1800,IF(AG38="Yes",SUM(K38:L38)*12%,0)),-1) -> 0 | AB38: =SUM(X38:AA38) -> 0 | AC38: =IFERROR(W38-AB38,"") ->  | AD38: Male | AE38: =IF(AD38=0,"",IF(AD38="Male","Mr",IF(AD38="Female","Mrs"))) -> Mr | AF38: =IF(A38=0,"",AF$4) -> Managing Director | AG38: No | AH38: No | AI38: 1400 | AJ38: ABC & Company Ltd
A39: =IF('Employee Attendance Template'!B39="","",'Employee Attendance Template'!B39) ->  | B39: =IF('Employee Attendance Template'!D39="","",'Employee Attendance Template'!D39) ->  | E39: =IF(A39="",0,'Employee Attendance Template'!AN39) -> 0 | F39: =IF(A39="",0,'Employee Attendance Template'!AL39) -> 0 | G39: =IF(A39="",0,'Employee Attendance Template'!AK39) -> 0 | H39: =IF(G39>=F39,E39-G39+F39,E39) -> 0 | J39: =IF(H39=0,"",ROUND(I39/E39*H39,-1)) ->  | K39: =IF(H39=0,"",ROUND($J39/E39*H39*50%,-1)) ->  | L39: =IF(H39=0,"",ROUND(J39/E39*H39*10%,-1)) ->  | M39: =IF(H39=0,"",ROUND(J39/E39*H39*25%,-1)) ->  | N39: 0 | O39: =IF(H39=0,"",ROUND(N39/E39*H39,-1)) ->  | P39: =MIN(1250,IF(AH39="Yes",IF(H39=0,"",AI39),0)) -> 0 | R39: =IF(H39=0,"",ROUND(J39-T39,-1)) ->  | S39: =IF(R39<=0,0,R39) ->  | T39: =IF(H39=0,"",SUM(K39:M39)+O39+P39) ->  | U39: 0 | V39: 0 | W39: =IF(H39=0,"",SUM(K39:M39)+O39+Q39+S39+U39+V39) ->  | X39: =ROUND(MIN(1800,IF(AG39="Yes",SUM(K39:L39)*12%,0)),-1) -> 0 | AB39: =SUM(X39:AA39) -> 0 | AC39: =IFERROR(W39-AB39,"") ->  | AD39: Male | AE39: =IF(AD39=0,"",IF(AD39="Male","Mr",IF(AD39="Female","Mrs"))) -> Mr | AF39: =IF(A39=0,"",AF$4) -> Managing Director | AG39: No | AH39: No | AI39: 1400 | AJ39: ABC & Company Ltd
A40: =IF('Employee Attendance Template'!B40="","",'Employee Attendance Template'!B40) ->  | B40: =IF('Employee Attendance Template'!D40="","",'Employee Attendance Template'!D40) ->  | E40: =IF(A40="",0,'Employee Attendance Template'!AN40) -> 0 | F40: =IF(A40="",0,'Employee Attendance Template'!AL40) -> 0 | G40: =IF(A40="",0,'Employee Attendance Template'!AK40) -> 0 | H40: =IF(G40>=F40,E40-G40+F40,E40) -> 0 | J40: =IF(H40=0,"",ROUND(I40/E40*H40,-1)) ->  | K40: =IF(H40=0,"",ROUND($J40/E40*H40*50%,-1)) ->  | L40: =IF(H40=0,"",ROUND(J40/E40*H40*10%,-1)) ->  | M40: =IF(H40=0,"",ROUND(J40/E40*H40*25%,-1)) ->  | N40: 0 | O40: =IF(H40=0,"",ROUND(N40/E40*H40,-1)) ->  | P40: =MIN(1250,IF(AH40="Yes",IF(H40=0,"",AI40),0)) -> 0 | R40: =IF(H40=0,"",ROUND(J40-T40,-1)) ->  | S40: =IF(R40<=0,0,R40) ->  | T40: =IF(H40=0,"",SUM(K40:M40)+O40+P40) ->  | U40: 0 | V40: 0 | W40: =IF(H40=0,"",SUM(K40:M40)+O40+Q40+S40+U40+V40) ->  | X40: =ROUND(MIN(1800,IF(AG40="Yes",SUM(K40:L40)*12%,0)),-1) -> 0 | AB40: =SUM(X40:AA40) -> 0 | AC40: =IFERROR(W40-AB40,"") ->  | AD40: Male | AE40: =IF(AD40=0,"",IF(AD40="Male","Mr",IF(AD40="Female","Mrs"))) -> Mr | AF40: =IF(A40=0,"",AF$4) -> Managing Director | AG40: No | AH40: No | AI40: 1400 | AJ40: ABC & Company Ltd
A41: =IF('Employee Attendance Template'!B41="","",'Employee Attendance Template'!B41) ->  | B41: =IF('Employee Attendance Template'!D41="","",'Employee Attendance Template'!D41) ->  | E41: =IF(A41="",0,'Employee Attendance Template'!AN41) -> 0 | F41: =IF(A41="",0,'Employee Attendance Template'!AL41) -> 0 | G41: =IF(A41="",0,'Employee Attendance Template'!AK41) -> 0 | H41: =IF(G41>=F41,E41-G41+F41,E41) -> 0 | J41: =IF(H41=0,"",ROUND(I41/E41*H41,-1)) ->  | K41: =IF(H41=0,"",ROUND($J41/E41*H41*50%,-1)) ->  | L41: =IF(H41=0,"",ROUND(J41/E41*H41*10%,-1)) ->  | M41: =IF(H41=0,"",ROUND(J41/E41*H41*25%,-1)) ->  | N41: 0 | O41: =IF(H41=0,"",ROUND(N41/E41*H41,-1)) ->  | P41: =MIN(1250,IF(AH41="Yes",IF(H41=0,"",AI41),0)) -> 0 | R41: =IF(H41=0,"",ROUND(J41-T41,-1)) ->  | S41: =IF(R41<=0,0,R41) ->  | T41: =IF(H41=0,"",SUM(K41:M41)+O41+P41) ->  | U41: 0 | V41: 0 | W41: =IF(H41=0,"",SUM(K41:M41)+O41+Q41+S41+U41+V41) ->  | X41: =ROUND(MIN(1800,IF(AG41="Yes",SUM(K41:L41)*12%,0)),-1) -> 0 | AB41: =SUM(X41:AA41) -> 0 | AC41: =IFERROR(W41-AB41,"") ->  | AD41: Male | AE41: =IF(AD41=0,"",IF(AD41="Male","Mr",IF(AD41="Female","Mrs"))) -> Mr | AF41: =IF(A41=0,"",AF$4) -> Managing Director | AG41: No | AH41: No | AI41: 1400 | AJ41: ABC & Company Ltd
A42: =IF('Employee Attendance Template'!B42="","",'Employee Attendance Template'!B42) ->  | B42: =IF('Employee Attendance Template'!D42="","",'Employee Attendance Template'!D42) ->  | E42: =IF(A42="",0,'Employee Attendance Template'!AN42) -> 0 | F42: =IF(A42="",0,'Employee Attendance Template'!AL42) -> 0 | G42: =IF(A42="",0,'Employee Attendance Template'!AK42) -> 0 | H42: =IF(G42>=F42,E42-G42+F42,E42) -> 0 | J42: =IF(H42=0,"",ROUND(I42/E42*H42,-1)) ->  | K42: =IF(H42=0,"",ROUND($J42/E42*H42*50%,-1)) ->  | L42: =IF(H42=0,"",ROUND(J42/E42*H42*10%,-1)) ->  | M42: =IF(H42=0,"",ROUND(J42/E42*H42*25%,-1)) ->  | N42: 0 | O42: =IF(H42=0,"",ROUND(N42/E42*H42,-1)) ->  | P42: =MIN(1250,IF(AH42="Yes",IF(H42=0,"",AI42),0)) -> 0 | R42: =IF(H42=0,"",ROUND(J42-T42,-1)) ->  | S42: =IF(R42<=0,0,R42) ->  | T42: =IF(H42=0,"",SUM(K42:M42)+O42+P42) ->  | U42: 0 | V42: 0 | W42: =IF(H42=0,"",SUM(K42:M42)+O42+Q42+S42+U42+V42) ->  | X42: =ROUND(MIN(1800,IF(AG42="Yes",SUM(K42:L42)*12%,0)),-1) -> 0 | AB42: =SUM(X42:AA42) -> 0 | AC42: =IFERROR(W42-AB42,"") ->  | AD42: Male | AE42: =IF(AD42=0,"",IF(AD42="Male","Mr",IF(AD42="Female","Mrs"))) -> Mr | AF42: =IF(A42=0,"",AF$4) -> Managing Director | AG42: No | AH42: No | AI42: 1400 | AJ42: ABC & Company Ltd
A43: =IF('Employee Attendance Template'!B43="","",'Employee Attendance Template'!B43) ->  | B43: =IF('Employee Attendance Template'!D43="","",'Employee Attendance Template'!D43) ->  | E43: =IF(A43="",0,'Employee Attendance Template'!AN43) -> 0 | F43: =IF(A43="",0,'Employee Attendance Template'!AL43) -> 0 | G43: =IF(A43="",0,'Employee Attendance Template'!AK43) -> 0 | H43: =IF(G43>=F43,E43-G43+F43,E43) -> 0 | J43: =IF(H43=0,"",ROUND(I43/E43*H43,-1)) ->  | K43: =IF(H43=0,"",ROUND($J43/E43*H43*50%,-1)) ->  | L43: =IF(H43=0,"",ROUND(J43/E43*H43*10%,-1)) ->  | M43: =IF(H43=0,"",ROUND(J43/E43*H43*25%,-1)) ->  | N43: 0 | O43: =IF(H43=0,"",ROUND(N43/E43*H43,-1)) ->  | P43: =MIN(1250,IF(AH43="Yes",IF(H43=0,"",AI43),0)) -> 0 | R43: =IF(H43=0,"",ROUND(J43-T43,-1)) ->  | S43: =IF(R43<=0,0,R43) ->  | T43: =IF(H43=0,"",SUM(K43:M43)+O43+P43) ->  | U43: 0 | V43: 0 | W43: =IF(H43=0,"",SUM(K43:M43)+O43+Q43+S43+U43+V43) ->  | X43: =ROUND(MIN(1800,IF(AG43="Yes",SUM(K43:L43)*12%,0)),-1) -> 0 | AB43: =SUM(X43:AA43) -> 0 | AC43: =IFERROR(W43-AB43,"") ->  | AD43: Male | AE43: =IF(AD43=0,"",IF(AD43="Male","Mr",IF(AD43="Female","Mrs"))) -> Mr | AF43: =IF(A43=0,"",AF$4) -> Managing Director | AG43: No | AH43: No | AI43: 1400 | AJ43: ABC & Company Ltd
E44: =IF(A44="",0,'Employee Attendance Template'!AN44) -> 0 | F44: =IF(A44="",0,'Employee Attendance Template'!AL44) -> 0 | G44: =IF(A44="",0,'Employee Attendance Template'!AK44) -> 0 | H44: =IF(G44>=F44,E44-G44+F44,E44) -> 0 | J44: =IF(H44=0,"",ROUND(I44/E44*H44,-1)) ->  | K44: =IF(H44=0,"",ROUND($J44/E44*H44*50%,-1)) ->  | L44: =IF(H44=0,"",ROUND(J44/E44*H44*10%,-1)) ->  | M44: =IF(H44=0,"",ROUND(J44/E44*H44*25%,-1)) ->  | N44: 0 | O44: =IF(H44=0,"",ROUND(N44/E44*H44,-1)) ->  | P44: =MIN(1250,IF(AH44="Yes",IF(H44=0,"",AI44),0)) -> 0 | R44: =IF(H44=0,"",ROUND(J44-T44,-1)) ->  | S44: =IF(R44<=0,0,R44) ->  | T44: =IF(H44=0,"",SUM(K44:M44)+O44+P44) ->  | U44: 0 | V44: 0 | W44: =IF(H44=0,"",SUM(K44:M44)+O44+Q44+S44+U44+V44) ->  | X44: =ROUND(MIN(1800,IF(AG44="Yes",SUM(K44:L44)*12%,0)),-1) -> 0 | AB44: =SUM(X44:AA44) -> 0 | AC44: =IFERROR(W44-AB44,"") ->  | AD44: Male | AE44: =IF(AD44=0,"",IF(AD44="Male","Mr",IF(AD44="Female","Mrs"))) -> Mr | AF44: =IF(A44=0,"",AF$4) ->  | AG44: No | AH44: No | AI44: 1400 | AJ44: ABC & Company Ltd
C45: =IF(A45=0,"",C$4) ->  | D45: =IF(A45=0,"",D$4) ->  | H45: =IF(G45>=F45,E45-G45+F45,E45) -> 0 | J45: =IF(H45=0,"",ROUND(I45/E45*H45,-1)) ->  | K45: =IF(H45=0,"",ROUND($J45/E45*H45*50%,-1)) ->  | L45: =IF(H45=0,"",ROUND(J45/E45*H45*10%,-1)) ->  | M45: =IF(H45=0,"",ROUND(J45/E45*H45*25%,-1)) ->  | N45: =IF(H45=0,"",1600) ->  | O45: =IF(H45=0,"",ROUND(N45/E45*H45,-1)) ->  | P45: =MIN(1250,IF(AH45="Yes",IF(H45=0,"",AI45),0)) -> 0 | R45: =IF(H45=0,"",ROUND(J45-T45,-1)) ->  | S45: =IF(R45<=0,0,R45) ->  | T45: =IF(H45=0,"",SUM(K45:M45)+O45+P45) ->  | W45: =IF(H45=0,"",SUM(K45:M45)+O45+Q45+S45+U45+V45) ->  | X45: =ROUND(MIN(1800,IF(AG45="Yes",SUM(K45:L45)*12%,0)),-1) -> 0 | AB45: =SUM(X45:AA45) -> 0 | AC45: =IFERROR(W45-AB45,"") ->  | AE45: =IF(AD45=0,"",IF(AD45="Male","Mr",IF(AD45="Female","Mrs"))) ->  | AF45: =IF(A45=0,"",AF$4) -> 
H46: 0 | P46: 0 | X46: 0 | AB46: 0
H47: 0 | P47: 0 | X47: 0 | AB47: 0
H48: 0 | P48: 0 | X48: 0 | AB48: 0
H49: 0 | P49: 0 | X49: 0 | AB49: 0
H50: 0 | P50: 0 | X50: 0 | AB50: 0
H51: 0 | P51: 0 | X51: 0 | AB51: 0
H52: 0 | P52: 0 | X52: 0 | AB52: 0
H53: 0 | P53: 0 | X53: 0 | AB53: 0
H54: 0 | P54: 0 | X54: 0 | AB54: 0

Sheet Consolidation
A1: www.ExcelDataPro.com
A2: ='Salary Slip'!B1 -> ABC & Company Ltd
A3: =CONCATENATE("Consolidated Salary Sheet for the month of "&" "&Database!C4&" ", Database!D4) -> Consolidated Salary Sheet for the month of May 2018
A4: Sl No | B4: Name of Employee | C4: CTC | D4: =Database!J2 -> TOTAL GROSS SALARY | L4: =Database!W3 -> TOTAL | M4: =Database!X2 -> TOTAL DEDUCTIONS | R4: =Database!AC3 -> NET PAYABLE
D5: =Database!K3 -> Basic Salary | E5: =Database!L3 -> DA | F5: =Database!M3 -> HRA | G5: =Database!N3 -> Conveyance | H5: =Database!P3 -> Medical Expenses | I5: =Database!S3 -> Special | J5: =Database!U3 -> Bonus | K5: =Database!V3 -> TA | M5: =Database!X3 -> Contribution to PF | N5: =Database!Y3 -> Profession Tax | O5: =Database!Z3 -> TDS | P5: =Database!AA3 -> Salary Advance | Q5: =Database!AB3 -> TOTAL
A6: 1 | B6: =Database!A4 -> Raj Sharma | C6: =Database!I4 -> 60000 | D6: =Database!K4 -> 23700 | E6: =Database!L4 -> 4740 | F6: =Database!M4 -> 11850 | G6: =Database!O4 -> 1420 | H6: =Database!P4 -> 1250 | I6: =Database!S4 -> 10370 | J6: =Database!U4 -> 13100 | K6: =Database!V4 -> 0 | L6: =SUM(D6:K6) -> 66430 | M6: =Database!X4 -> 1800 | N6: =Database!Y4 -> 0 | O6: =Database!Z4 -> 7000 | P6: =Database!AA4 -> 0 | Q6: =SUM(M6:P6) -> 8800 | R6: =L6-Q6 -> 57630
A7: =IF(C7>0,A6+1,"") -> 2 | B7: =Database!A5 -> Sharad Gandhi | C7: =Database!I5 -> 30000 | D7: =Database!K5 -> 13910 | E7: =Database!L5 -> 2780 | F7: =Database!M5 -> 6960 | G7: =Database!O5 -> 1540 | H7: =Database!P5 -> 1250 | I7: =Database!S5 -> 2450 | J7: =Database!U5 -> 2300 | K7: =Database!V5 -> 0 | L7: 31190 | M7: =Database!X5 -> 1800 | N7: =Database!Y5 -> 0 | O7: =Database!Z5 -> 500 | P7: =Database!AA5 -> 0 | Q7: 2300 | R7: 28890
A8: 3 | B8: =Database!A6 -> Danish D'Souza | C8: =Database!I6 -> 20000 | D8: =Database!K6 -> 10000 | E8: =Database!L6 -> 2000 | F8: =Database!M6 -> 5000 | G8: =Database!O6 -> 1000 | H8: =Database!P6 -> 1250 | I8: =Database!S6 -> 750 | J8: =Database!U6 -> 0 | K8: =Database!V6 -> 0 | L8: 20000 | M8: =Database!X6 -> 1440 | N8: =Database!Y6 -> 0 | O8: =Database!Z6 -> 0 | P8: =Database!AA6 -> 0 | Q8: 1440 | R8: 18560
A9: 4 | B9: =Database!A7 -> Pawan Patil | C9: =Database!I7 -> 25000 | D9: =Database!K7 -> 12500 | E9: =Database!L7 -> 2500 | F9: =Database!M7 -> 6250 | G9: =Database!O7 -> 1600 | H9: =Database!P7 -> 1250 | I9: =Database!S7 -> 900 | J9: =Database!U7 -> 0 | K9: =Database!V7 -> 0 | L9: 25000 | M9: =Database!X7 -> 1800 | N9: =Database!Y7 -> 0 | O9: =Database!Z7 -> 0 | P9: =Database!AA7 -> 0 | Q9: 1800 | R9: 23200
A10: 5 | B10: =Database!A8 -> Rijo Paul | C10: =Database!I8 -> 22000 | D10: =Database!K8 -> 11000 | E10: =Database!L8 -> 2200 | F10: =Database!M8 -> 5500 | G10: =Database!O8 -> 1100 | H10: =Database!P8 -> 1250 | I10: =Database!S8 -> 950 | J10: =Database!U8 -> 2300 | K10: =Database!V8 -> 0 | L10: 24300 | M10: =Database!X8 -> 1580 | N10: =Database!Y8 -> 0 | O10: =Database!Z8 -> 0 | P10: =Database!AA8 -> 0 | Q10: 1580 | R10: 22720
A11: 6 | B11: =Database!A9 -> Joseph P | C11: =Database!I9 -> 14000 | D11: =Database!K9 -> 7000 | E11: =Database!L9 -> 1400 | F11: =Database!M9 -> 3500 | G11: =Database!O9 -> 700 | H11: =Database!P9 -> 1250 | I11: =Database!S9 -> 150 | J11: =Database!U9 -> 2300 | K11: =Database!V9 -> 0 | L11: 16300 | M11: =Database!X9 -> 1010 | N11: =Database!Y9 -> 0 | O11: =Database!Z9 -> 0 | P11: =Database!AA9 -> 0 | Q11: 1010 | R11: 15290
A12: 7 | B12: =Database!A10 -> Aakash Patel | C12: =Database!I10 -> 15000 | D12: =Database!K10 -> 7500 | E12: =Database!L10 -> 1500 | F12: =Database!M10 -> 3750 | G12: =Database!O10 -> 600 | H12: =Database!P10 -> 1200 | I12: =Database!S10 -> 450 | J12: =Database!U10 -> 0 | K12: =Database!V10 -> 0 | L12: 15000 | M12: =Database!X10 -> 1080 | N12: =Database!Y10 -> 0 | O12: =Database!Z10 -> 0 | P12: =Database!AA10 -> 0 | Q12: 1080 | R12: 13920
A13: 8 | B13: =Database!A11 -> Ganesh Rahu | C13: =Database!I11 -> 14000 | D13: =Database!K11 -> 7000 | E13: =Database!L11 -> 1400 | F13: =Database!M11 -> 3500 | G13: =Database!O11 -> 600 | H13: =Database!P11 -> 1200 | I13: =Database!S11 -> 300 | J13: =Database!U11 -> 0 | K13: =Database!V11 -> 0 | L13: 14000 | M13: =Database!X11 -> 1010 | N13: =Database!Y11 -> 0 | O13: =Database!Z11 -> 0 | P13: =Database!AA11 -> 0 | Q13: 1010 | R13: 12990
A14: 9 | B14: =Database!A12 -> Vinudas K.S | C14: =Database!I12 -> 14000 | D14: =Database!K12 -> 7000 | E14: =Database!L12 -> 1400 | F14: =Database!M12 -> 3500 | G14: =Database!O12 -> 700 | H14: =Database!P12 -> 1250 | I14: =Database!S12 -> 150 | J14: =Database!U12 -> 1500 | K14: =Database!V12 -> 0 | L14: 15500 | M14: =Database!X12 -> 1010 | N14: =Database!Y12 -> 0 | O14: =Database!Z12 -> 0 | P14: =Database!AA12 -> 0 | Q14: 1010 | R14: 14490
A15: 10 | B15: =Database!A13 -> Divya Kumar | C15: =Database!I13 -> 8000 | D15: =Database!K13 -> 4000 | E15: =Database!L13 -> 800 | F15: =Database!M13 -> 2000 | G15: =Database!O13 -> 400 | H15: =Database!P13 -> 800 | I15: =Database!S13 -> 0 | J15: =Database!U13 -> 0 | K15: =Database!V13 -> 0 | L15: 8000 | M15: =Database!X13 -> 580 | N15: =Database!Y13 -> 0 | O15: =Database!Z13 -> 0 | P15: =Database!AA13 -> 0 | Q15: 580 | R15: 7420
A16: 11 | B16: =Database!A14 -> Shilpa R | C16: =Database!I14 -> 8000 | D16: =Database!K14 -> 4000 | E16: =Database!L14 -> 800 | F16: =Database!M14 -> 2000 | G16: =Database!O14 -> 390 | H16: =Database!P14 -> 774 | I16: =Database!S14 -> 40 | J16: =Database!U14 -> 0 | K16: =Database!V14 -> 0 | L16: 8004 | M16: =Database!X14 -> 580 | N16: =Database!Y14 -> 0 | O16: =Database!Z14 -> 0 | P16: =Database!AA14 -> 0 | Q16: 580 | R16: 7424
A17: 12 | B17: =Database!A15 -> Sindhu J.P | C17: =Database!I15 -> 8000 | D17: =Database!K15 -> 4000 | E17: =Database!L15 -> 800 | F17: =Database!M15 -> 2000 | G17: =Database!O15 -> 400 | H17: =Database!P15 -> 800 | I17: =Database!S15 -> 0 | J17: =Database!U15 -> 0 | K17: =Database!V15 -> 0 | L17: 8000 | M17: =Database!X15 -> 580 | N17: =Database!Y15 -> 0 | O17: =Database!Z15 -> 0 | P17: =Database!AA15 -> 0 | Q17: 580 | R17: 7420
A18: 13 | B18: =Database!A16 -> Deepthi P.S | C18: =Database!I16 -> 8000 | D18: =Database!K16 -> 4000 | E18: =Database!L16 -> 800 | F18: =Database!M16 -> 2000 | G18: =Database!O16 -> 180 | H18: =Database!P16 -> 749 | I18: =Database!S16 -> 270 | J18: =Database!U16 -> 0 | K18: =Database!V16 -> 0 | L18: 7999 | M18: =Database!X16 -> 580 | N18: =Database!Y16 -> 0 | O18: =Database!Z16 -> 0 | P18: =Database!AA16 -> 0 | Q18: 580 | R18: 7419
A19: 14 | B19: =Database!A17 -> Lijin k c | C19: =Database!I17 -> 13000 | D19: =Database!K17 -> 6500 | E19: =Database!L17 -> 1300 | F19: =Database!M17 -> 3250 | G19: =Database!O17 -> 500 | H19: =Database!P17 -> 1000 | I19: =Database!S17 -> 450 | J19: =Database!U17 -> 2000 | K19: =Database!V17 -> 0 | L19: 15000 | M19: =Database!X17 -> 940 | N19: =Database!Y17 -> 0 | O19: =Database!Z17 -> 0 | P19: =Database!AA17 -> 0 | Q19: 940 | R19: 14060
A20: 15 | B20: =Database!A18 -> Sayad K M | C20: =Database!I18 -> 35000 | D20: =Database!K18 -> 17500 | E20: =Database!L18 -> 3500 | F20: =Database!M18 -> 8750 | G20: =Database!O18 -> 1600 | H20: =Database!P18 -> 1250 | I20: =Database!S18 -> 2400 | J20: =Database!U18 -> 2000 | K20: =Database!V18 -> 0 | L20: 37000 | M20: =Database!X18 -> 1800 | N20: =Database!Y18 -> 0 | O20: =Database!Z18 -> 2000 | P20: =Database!AA18 -> 0 | Q20: 3800 | R20: 33200
A21: 16 | B21: =Database!A19 -> Ajil k Mohanan | C21: =Database!I19 -> 22000 | D21: =Database!K19 -> 11000 | E21: =Database!L19 -> 2200 | F21: =Database!M19 -> 5500 | G21: =Database!O19 -> 500 | H21: =Database!P19 -> 1250 | I21: =Database!S19 -> 1550 | J21: =Database!U19 -> 0 | K21: =Database!V19 -> 0 | L21: =SUM(D21:K21) -> 22000 | M21: =Database!X19 -> 1580 | N21: =Database!Y19 -> 0 | O21: =Database!Z19 -> 0 | P21: =Database!AA19 -> 0 | Q21: =SUM(M21:P21) -> 1580 | R21: =L21-Q21 -> 20420
A22: 17 | B22: =Database!A20 -> Edison ML | C22: =Database!I20 -> 12000 | D22: =Database!K20 -> 6000 | E22: =Database!L20 -> 1200 | F22: =Database!M20 -> 3000 | G22: =Database!O20 -> 600 | H22: =Database!P20 -> 1200 | I22: =Database!S20 -> 0 | J22: =Database!U20 -> 1000 | K22: =Database!V20 -> 0 | L22: 13000 | M22: =Database!X20 -> 860 | N22: =Database!Y20 -> 0 | O22: =Database!Z20 -> 0 | P22: =Database!AA20 -> 0 | Q22: 860 | R22: 12140
A23: 18 | B23: =Database!A21 -> Basil P E | C23: =Database!I21 -> 22000 | D23: =Database!K21 -> 11000 | E23: =Database!L21 -> 2200 | F23: =Database!M21 -> 5500 | G23: =Database!O21 -> 270 | H23: =Database!P21 -> 1067 | I23: =Database!S21 -> 1960 | J23: =Database!U21 -> 5000 | K23: =Database!V21 -> 0 | L23: 26997 | M23: =Database!X21 -> 1580 | N23: =Database!Y21 -> 0 | O23: =Database!Z21 -> 0 | P23: =Database!AA21 -> 0 | Q23: 1580 | R23: 25417
A24: 19 | B24: =Database!A22 -> Jobin George | C24: =Database!I22 -> 16000 | D24: =Database!K22 -> 7420 | E24: =Database!L22 -> 1480 | F24: =Database!M22 -> 3710 | G24: =Database!O22 -> 770 | H24: =Database!P22 -> 1250 | I24: =Database!S22 -> 780 | J24: =Database!U22 -> 1500 | K24: =Database!V22 -> 0 | L24: 16910 | M24: =Database!X22 -> 1070 | N24: =Database!Y22 -> 0 | O24: =Database!Z22 -> 0 | P24: =Database!AA22 -> 0 | Q24: 1070 | R24: 15840
A25: 20 | B25: =Database!A23 -> Jismon Tomy | C25: =Database!I23 -> 10000 | D25: =Database!K23 -> 5000 | E25: =Database!L23 -> 1000 | F25: =Database!M23 -> 2500 | G25: =Database!O23 -> 500 | H25: =Database!P23 -> 1000 | I25: =Database!S23 -> 0 | J25: =Database!U23 -> 2000 | K25: =Database!V23 -> 0 | L25: 12000 | M25: =Database!X23 -> 720 | N25: =Database!Y23 -> 0 | O25: =Database!Z23 -> 0 | P25: =Database!AA23 -> 0 | Q25: 720 | R25: 11280
A26: 21 | B26: =Database!A24 -> Sharafali P | C26: =Database!I24 -> 14000 | D26: =Database!K24 -> 7000 | E26: =Database!L24 -> 1400 | F26: =Database!M24 -> 3500 | G26: =Database!O24 -> 700 | H26: =Database!P24 -> 1250 | I26: =Database!S24 -> 150 | J26: =Database!U24 -> 0 | K26: =Database!V24 -> 0 | L26: 14000 | M26: =Database!X24 -> 1010 | N26: =Database!Y24 -> 0 | O26: =Database!Z24 -> 0 | P26: =Database!AA24 -> 0 | Q26: 1010 | R26: 12990
P27: Total | R27: =SUM(R6:R26) -> 382720
B28: =CONCATENATE("Rupees ",SpellNumber(R27)) -> Rupees Three Lakh EightyTwo Thousand Seven Hundred Twenty Only
M29: ='Salary Slip'!B27 -> Authorised by Managing Director
M32: ='Salary Slip'!G27 -> Signature

Sheet Salary Slip
B1: =VLOOKUP(Q2,_xlnm.Database,36,FALSE) -> ABC & Company Ltd
B2: =PROPER(CONCATENATE("SALARY PAY SLIP FOR THE MONTH OF"&" ",VLOOKUP(Q2,_xlnm.Database,3,FALSE)&" ",VLOOKUP(Q2,_xlnm.Database,4,FALSE))) -> Salary Pay Slip For The Month Of May 2018 | P2: NAME | Q2: Raj Sharma
P3: DESIGNATION | Q3: =VLOOKUP(Q2,_xlnm.Database,2,FALSE) -> Chief Technical Officer
B4: Name: | C4: =VLOOKUP(Q2,_xlnm.Database,31,FALSE)&"."&VLOOKUP(Q2,_xlnm.Database,1,FALSE) -> Mr.Raj Sharma | G4: =PROPER(P3) -> Designation | I4: =Q3 -> Chief Technical Officer | P4: TOTAL LEAVE DAYS | Q4: =VLOOKUP(Q$2,_xlnm.Database,7,FALSE) -> 5
A5: I | B5: Basic Payment | G5: $ | H5: =Q9 -> 23700 | I5: A | J5: Total Attendance | M5: =MIN(30,Q5) -> 27 | P5: TOTAL DAYS OF THE MONTH | Q5: =VLOOKUP(Q$2,_xlnm.Database,5,FALSE) -> 27
A6: II | B6: Dearness Allowance | E6: $ | F6: =Q10 -> 4740 | I6: B | J6: Total Leave | M6: =Q4 -> 5 | P6: TOTAL ALLOWED LEAVE | Q6: =VLOOKUP(Q$2,_xlnm.Database,6,FALSE) -> 2
A7: III | B7: House Rent Allowance | E7: $ | F7: 11850 | J7: Allowed Leave | M7: =Q6 -> 2 | P7: CTC | Q7: =VLOOKUP(Q$2,_xlnm.Database,9,FALSE) -> 60000
A8: IV | B8: Conveyance | E8: $ | F8: 1420 | J8: Loss of Pay days | M8: =IF(M6<=M7,0,M6-M7) -> 3
A9: V | B9: Medical Expenses | E9: $ | F9: 0 | I9: C | J9: Total Salary Days | M9: =M5-M8 -> 24 | O9: ADDITIONS | P9: BASIC SALARY | Q9: =VLOOKUP(Q$2,_xlnm.Database,11,FALSE) -> 23700
A10: VI | B10: Special | E10: $ | F10: 10370 | P10: DEARNESS ALLOWANCE | Q10: =VLOOKUP(Q$2,_xlnm.Database,12,FALSE) -> 4740
A11: VII | B11: Bonus | E11: $ | F11: 13100 | P11: HOUSE RENT ALLOWANCE | Q11: =VLOOKUP(Q$2,_xlnm.Database,13,FALSE) -> 11850
A12: VIII | B12: =Database!V3 -> TA | E12: $ | F12: 0 | P12: CONVEYANCE | Q12: =VLOOKUP(Q$2,_xlnm.Database,15,FALSE) -> 1420
B13: Sub Total | G13: $ | H13: =SUM(F6:F12) -> 41480 | P13: MEDICAL EXPENSES | Q13: =VLOOKUP(Q$2,_xlnm.Database,17,FALSE) -> 0
B14: Total Gross Salary | H14: =H5+H13 -> 65180 | P14: SPECIAL | Q14: =VLOOKUP(Q$2,_xlnm.Database,19,FALSE) -> 10370
B15: Deductions | P15: BONUS | Q15: =VLOOKUP(Q$2,_xlnm.Database,21,FALSE) -> 13100
B16: a.Contribution to PF | E16: $ | F16: =Q18 -> 1800 | P16: OTHERS | Q16: =VLOOKUP(Q$2,_xlnm.Database,22,FALSE) -> 0
B17: b.Salary Advance | E17: Rs. | F17: =Q21 -> 0 | P17: =CONCATENATE("TOTAL"," " & O9) -> TOTAL ADDITIONS | Q17: =SUM(Q9:Q16) -> 65180
B18: c.Profession Tax | E18: Rs. | F18: =Q19 -> 0 | O18: DEDUCTIONS | P18: CONTRIBUTION TO PF | Q18: =VLOOKUP(Q$2,_xlnm.Database,24,FALSE) -> 1800
B19: d.TDS | E19: Rs. | F19: =Q20 -> 7000 | P19: PROFESSION TAX | Q19: =VLOOKUP(Q$2,_xlnm.Database,25,FALSE) -> 0
B20: Total Deductions | F20: =SUM(F16:F19) -> 8800 | P20: TDS | Q20: =VLOOKUP(Q$2,_xlnm.Database,26,FALSE) -> 7000
B21: Total Deductions | G21: Rs. | H21: =ROUND(F20,-1) -> 8800 | P21: SALARY ADVANCE | Q21: =VLOOKUP(Q$2,_xlnm.Database,27,FALSE) -> 0
P22: =CONCATENATE("TOTAL"," " & O18) -> TOTAL DEDUCTIONS | Q22: =SUM(Q18:Q21) -> 8800
B23: SALARY AFTER DEDUCTIONS | H23: =H14-H21 -> 56380
B24: Less Salary Advance | G24: Rs | H24: =Q21 -> 0 | I24: =SpellNumber(H25) -> FiftySix Thousand Three Hundred Eighty Only
B25: NET TAKE HOME | H25: =H23-H24 -> 56380
B27: =CONCATENATE("Authorised by" &" ",Database!AF4) -> Authorised by Managing Director | G27: Signature | I27: -----------------------------------
